{"text_format":"1","workbook":"xlsx","n_sheets":4,"sheets":["Титульний лист","Розділ 1","Розділ 2 ","Довідка "],"not_rendered":{"charts":0,"images":0,"macros":1,"external_links":0,"defined_names":4,"comments":0,"pivot_tables":0},"unopened":[],"bounds":{"document_bytes":16777216,"sheet_cells":100000,"rows_first":2000,"rows_last":500,"rows_between":2000,"halvings":0,"cell_chars":16384,"cell_head_chars":4096},"cells_cut":0,"cells_raw":0,"read":"whole","date_system":"1900"}

{"sheet":"Титульний лист","index":0,"n_rows":21,"n_cols":9,"rows_kept":21,"cut":false,"hidden":false,"merged":[[20,0,20,9],[19,0,19,9],[16,2,16,9],[16,0,16,1],[10,7,10,9],[17,0,17,9],[18,0,18,9],[15,0,15,1],[15,2,15,9],[11,7,11,9],[14,0,14,9],[10,0,10,3],[8,0,9,3],[8,4,9,6],[10,4,10,6],[11,0,11,3],[11,4,11,6],[9,7,9,9],[7,0,7,3],[0,0,0,9],[2,0,3,9],[4,0,4,9],[5,0,5,9],[7,4,7,6],[7,7,7,9]]}
["Звітність"]
["","","","",""]
["ЗВІТ СУДІВ ПЕРШОЇ ІНСТАНЦІЇ ЩОДО РОЗГЛЯДУ СПРАВ ПРО АДМІНІСТРАТИВНІ ПРАВОПОРУШЕННЯ  "]
[]
["за 2019 рік"]
[""]
["","","","",""]
["Подають",null,null,null,"Терміни подання",null,null,"Форма № 1-п"]
["місцеві загальні суди – територіальним управлінням Державної судової адміністрації України",null,null,null,"на 10-й день після звітного періоду",null,null,null,"(річна) "]
[null,null,null,null,null,null,null,"За погодженням з Держстатом "]
["територіальні управління Державної судової адміністрації України – Державній судовій адміністрації України; копію – органу державної статистики за місцезнаходженням, відповідному апеляційному суду",null,null,null,"на 20-й день після звітного періоду",null,null,"ЗАТВЕРДЖЕНО\nНаказ Державної судової адміністрації України \nвід 23.06.2018 № 325"]
["Державна судова адміністрація України – Державній службі статистики України; \nкопію – Верховному Суду",null,null,null,"не пізніше 40-го дня після звітного періоду",null,null,"У редакції наказу Державної судової адміністрації України                     від 20.08.2019 № 828"]
[]
["","","","",""]
["Респондент:"]
["Найменування:",null,"Тростянецький районний суд Вінницької області"]
["Місцезнаходження:",null,"24300. Вінницька область.смт. Тростянець"]
["вул. Соборна"]
[21]
["(поштовий індекс, область /АР Крим, район, населений пункт, вулиця /провулок, площа тощо,"]
["№ будинку /корпусу, № квартири /офісу)"]

{"sheet":"Розділ 1","index":1,"n_rows":531,"n_cols":38,"rows_kept":531,"cut":false,"hidden":false,"merged":[[2,29,2,32],[2,36,2,37],[3,24,5,24],[1,35,1,37],[3,36,5,36],[3,37,5,37],[2,35,5,35],[1,33,1,34],[2,33,5,33],[2,34,5,34],[1,29,1,32],[3,31,5,31],[3,32,5,32],[3,29,5,29],[3,30,5,30],[2,18,2,28],[3,26,5,26],[1,18,1,28],[1,7,5,7],[4,12,5,12],[2,9,5,9],[3,28,5,28],[4,13,4,17],[3,23,5,23],[3,25,5,25],[3,21,5,21],[3,22,5,22],[3,19,5,19],[3,27,5,27],[3,18,5,18],[3,20,5,20],[0,0,0,16],[3,11,5,11],[1,8,5,8],[3,10,5,10],[2,10,2,17],[3,12,3,17],[1,5,5,5],[1,3,4,4],[1,9,1,17],[1,0,5,0],[1,2,5,2],[1,1,5,1],[1,6,5,6]]}
["Розділ 1. Розгляд справ про адміністративні правопорушення"]
["№ з/п","Назва статті Кодексу України про адміністративні правопорушення або адміністративного правопорушення, яке не ввійшло до Кодексу, але передбачене іншими законодавчими чи нормативними актами","Номер статті","Кількість справ, що перебували на розгляді, од ",null,"Кількість повернутих справ, од ","в тому числі для належного оформлення","Кількість розглянутих справ, од","Кількість нерозглянутих справ на кінець звітного періоду, од","Кількість осіб, щодо яких розглянуто справи",null,null,null,null,null,null,null,null,"Накладено адміністративних стягнень (з гр. 8), од",null,null,null,null,null,null,null,null,null,null,"Накладено адміністративних стягнень (з гр. 8), од",null,null,null,"Сума штрафу (з гр. 17), грн.",null,"Сума заподіяної матеріальної шкоди, грн."]
[null,null,null,null,null,null,null,null,null,"усього","у тому числі",null,null,null,null,null,null,null,"основних",null,null,null,null,null,null,null,null,null,null,"додаткових",null,null,null,"накладеного","сплаченого добровільно","установлено","відшкодовано"]
[null,null,null,null,null,null,null,null,null,null,"про накладення адміністративного стягнення","про застосування заходів впливу, передбачених статтею 24-1 КУпАП","про закриття справи",null,null,null,null,null,"попередження","штраф","оплатне вилучення предмета","конфіскація предмета, грошей","позбавлення спеціального права","громадські роботи","суспільно корисні роботи","виправні роботи","адміністративний арешт","арешт з утриманням  на гауптвахті","інші види адміністративних стягнень","оплатне вилучення предмета","конфіскація предмета, грошей","позбавленя права обіймати певні посади або займатися певною діяльністю","позбавлення спеціального права (керування транспортним засобом) ",null,null,null,"усього","у тому числі повернуто власнику в порядку відшкодування"]
[null,null,null,null,null,null,null,null,null,null,null,null,"усього","у тому числі у зв’язку із"]
[null,null,null,"усього","у тому числі надійшло у звітнгому періоді",null,null,null,null,null,null,null,null,"передачею матеріалів на розгляд громадської організації або трудового колективу","звільненням від адміністративної відповідальності при малозначності правопорушення","передачею справи прокурору, органу досудового розслідування","відсутністю події і складу адміністративного правопорушення","закінченням строків накладення адміністративного стягнення"]
["А","Б","В",1,2,3,4,5,6,7,8,9,10,11,12,13,14,15,16,17,18,19,20,21,22,23,24,25,26,27,28,29,30,31,32,33,34,35]
[501,"Митний кодекс 2012 р.","ст. 485"]
[1,"УСЬОГО, з них",null,{"$f":"SUM(D10:D531)","v":425},425,120,119,299,6,299,251,2,46,0,0,0,24,21,0,232,0,0,1,2,16,0,0,0,0,0,16,0,100,1218305,342023,6104,1778,0]
[2,"Порушення вимог законодавства про працю та про охорону праці",41]
[3,"Ухилення від участі в переговорах щодо укладення, зміни або доповнення колективного договору, угоди","41-1"]
[4,"Порушення чи невиконання колективного договору, угоди","41-2"]
[5,"Ненадання інформації для ведення колективних переговорів і здійснення контролю за виконанням колективних договорів, угод","41-3"]
[6,"Порушення санітарних норм",42]
[7,"Виробництво, заготівля, реалізація сільськогосподарської продукції, що містить хімічні препарати понад гранично допустимі рівні концентрації","42-1"]
[8,"Заготівля, переробка або збут радіоактивно забруднених продуктів харчування чи іншої продукції","42-2"]
[9,"Виробництво, зберігання, транспортування або реалізація продуктів харчування чи продовольчої сировини, забруднених мікроорганізмами та іншими біологічними агентами понад гранично допустимі рівні","42-3"]
[10,"Продаж лікарських засобів без рецепта у заборонених законодавством випадках","42-4"]
[11,"Незаконні виробництво, придбання, зберігання, перевезення, пересилання наркотичних засобів або психотропних речовин без мети збуту в невеликих розмірах",44,2,2,1,1,1,null,1,null,null,1,null,null,null,1]
[12,"Ухилення від медичного огляду чи медичного обстеження","44-1"]
[13,"Порушення обмежень, встановлених для медичних і фармацевтичних працівників під час здійснення ними професійної діяльності","44-2"]
[14,"Ухилення від обстеження і профілактичного лікування осіб, хворих на венеричну хворобу",45]
[15,"Порушення встановленого порядку взяття, переробки, зберігання, реалізації і застосування донорської крові та (або) її компонентів і препаратів","45-1"]
[16,"Умисне приховування джерела зараження венеричною хворобою",46]
[17,"Порушення вимог режиму радіаційної безпеки в місцевостях, що зазнали радіоактивного забруднення","46-1"]
[18,"Порушення встановлених законодавством вимог щодо заняття народною медициною (цілительством)","46-2"]
[19,"Порушення права державної власності на надра",47]
[20,"Порушення права державної власності на води",48]
[21,"Порушення права державної власності на ліси",49]
[22,"Порушення права державної власності на тваринний світ",50]
[23,"Дрібне викрадення чужого майна",51]
[24,"В И К Л Ю Ч Е Н А","51-1"]
[25,"Порушення прав на об'єкт права інтелектуальної власності","51-2"]
[26,"Продаж квитків на фінальні матчі Ліги чемпіонів УЄФА або Ліги чемпіонів УЄФА серед жінок сезону 2017/2018","51-3"]
[27,"Псування і забруднення сільськогосподарських та інших земель",52]
[28,"Порушення правил використання земель",53]
[29,"Самовільне зайняття земельної ділянки","53-1"]
[30,"Приховування або перекручення даних земельного кадастру","53-2"]
[31,"Зняття та перенесення ґрунтового покриву земельних ділянок без спеціального дозволу ","53-3"]
[32,"Незаконне заволодіння ґрунтовим покривом (поверхневим шаром) земель ","53-4"]
[33,"Порушення строку погодження (відмови у погодженні) документації із землеустрою","53-5"]
[34,"Порушення законодавства про Державний земельний кадастр","53-6"]
[35,"Порушення строків повернення тимчасово зайнятих земель або неприведення їх у стан, придатний для використання за призначенням ",54]
[36,"Порушення правил землеустрою",55]
[37,"Знищення межових знаків",56]
[38,"Порушення вимог щодо охорони надр",57]
[39,"Порушення правил і вимог проведення робіт по геологічному вивченню надр",58]
[40,"Порушення правил охорони водних ресурсів",59]
[41,"Порушення вимог щодо охорони територіальних і внутрішніх морських вод від забруднення і засмічення","59-1"]
[42,"Порушення правил водокористування",60]
[43,"Пошкодження водогосподарських споруд і пристроїв, порушення правил їх експлуатації",61]
[44,"Невиконання обов'язків по реєстрації в суднових документах операцій з шкідливими речовинами і сумішами",62]
[45,"Незаконне використання земель державного лісового фонду",63]
[46,"Порушення встановленого порядку використання лісосічного фонду, заготівлі і вивезення деревини, заготівлі живиці",64]
[47,"Незаконна порубка, пошкодження та знищення лісових культур і молодняка",65]
[48,"Знищення або пошкодження полезахисних лісових смуг та захисних лісових насаджень","65-1"]
[49,"Знищення або пошкодження підросту в лісах",66]
[50,"Здійснення лісових користувань не у відповідності з метою або вимогами, передбаченими в лісорубному квитку (ордері) або лісовому квитку",67]
[51,"Порушення правил відновлення і поліпшення лісів, використання ресурсів спілої деревини",68]
[52,"Пошкодження сінокосів і пасовищних угідь на землях державного лісового фонду",69]
[53,"Самовільне сінокосіння і пасіння худоби, самовільне збирання дикорослих плодів, горіхів, грибів, ягід",70]
[54,"Введення в експлуатацію виробничих об'єктів без обладнання, що запобігає шкідливому впливу на ліси",71]
[55,"Пошкодження лісу стічними водами, хімічними речовинами, нафтою і нафтопродуктами, шкідливими викидами, відходами і покидьками",72]
[56,"Засмічення лісів відходами",73]
[57,"Знищення або пошкодження лісоосушувальних канав, дренажних систем і шляхів на землях державного лісового фонду",74]
[58,"Знищення або пошкодження відмежувальних знаків у лісах",75]
[59,"Знищення корисної для лісу фауни",76]
[60,"Порушення вимог пожежної безпеки в лісах",77]
[61,"Самовільне випалювання рослинності або її залишків","77-1"]
[62,"Порушення порядку здійснення викиду забруднюючих речовин в атмосферу або впливу на неї фізичних та біологічних факторів",78]
[63,"Порушення порядку здійснення діяльності, спрямованої на штучні зміни стану атмосфери і атмосферних явищ","78-1"]
[64,"Недодержання вимог щодо охорони атмосферного повітря при введенні в експлуатацію і експлуатації підприємств і споруд",79]
[65,"В И К Л Ю Ч Е Н А","79-1"]
[66,"Випуск в експлуатацію транспортних та інших пересувних засобів з перевищенням нормативів вмісту забруднюючих речовин у відпрацьованих газах",80]
[67,"Експлуатація автомототранспортних та інших пересувних засобів з перевищенням нормативів вмісту забруднюючих речовин у відпрацьованих газах",81]
[68,"Порушення вимог щодо поводження з відходами під час їх збирання, перевезення, зберігання, оброблення, утилізації, знешкодження, видалення або захоронення",82]
[69,"Порушення правил ведення первинного обліку та здійснення контролю за операціями поводження з відходами або неподання чи подання звітності щодо утворення, використання, знешкодження та видалення відходів","82-1"]
[70,"Виробництво продукції з відходів чи з їх використанням без відповідної нормативно-технічної та технологічної документації","82-2"]
[71,"Приховування, перекручення або відмова від надання повної та достовірної інформації за запитами посадових осіб і зверненнями громадян та їх об'єднань щодо безпеки утворення відходів та поводження з ними","82-3"]
[72,"Змішування чи захоронення відходів, для утилізації яких в Україні існує відповідна технологія, без спеціального дозволу","82-4"]
[73,"Порушення правил передачі відходів","82-5"]
[74,"Порушення встановлених правил і режиму експлуатації установок і виробництв з оброблення та утилізації відходів","82-6"]
[75,"Порушення вимог законодавства у сфері хімічних  джерел струму","82-7"]
[76,"Порушення правил застосування, зберігання, транспортування, знешкодження, ліквідації та захоронення пестицидів і агрохімікатів, токсичних хімічних речовин та інших препаратів",83]
[77,"Порушення законодавства про захист рослин","83-1"]
[78,"Порушення правил використання об'єктів тваринного світу",85,9,9,null,null,9,null,9,9,null,null,null,null,null,null,null,null,9,null,null,null,null,null,null,null,null,null,null,9,null,null,3060,1020,4182,476]
[79,"Виготовлення та збут заборонених знарядь добування об'єктів тваринного або рослинного світу","85-1",1,1,null,null,1,null,1,1,null,null,null,null,null,null,null,null,1,null,null,null,null,null,null,null,null,null,null,1,null,null,153,153]
[80,"Експлуатація на водних об'єктах водозабірних споруд, не забезпечених рибозахисним обладнанням","86-1"]
[81,"Порушення вимог щодо охорони середовища перебування і шляхів міграції, переселення, акліматизації та схрещування диких тварин",87]
[82,"Незаконне вивезення з України і ввезення на її територію об'єктів тваринного і рослинного світу",88]
[83,"Порушення порядку придбання чи збуту об'єктів тваринного або рослинного світу, правил утримання диких тварин у неволі або в напіввільних умовах","88-1"]
[84,"Порушення правил створення, поповнення, зберігання, використання або державного обліку зоологічних, ботанічних колекцій та торгівлі ними","88-2"]
[85,"Жорстоке поводження з тваринами",89]
[86,"Порушення вимог щодо охорони видів тварин і рослин, занесених до Червоної книги України",90,3,3,null,null,3,null,3,3,null,null,null,null,null,null,null,null,3,null,null,null,null,null,null,null,null,null,null,3,null,null,1020,1020,1922,1302]
[87,"Невиконання правил і норм у процесі створення, виробництва, зберігання, транспортування, використання, знешкодження, ліквідації, захоронення мікроорганізмів, біологічно активних речовин та інших продуктів біотехнологій","90-1"]
[88,"Порушення правил охорони та використання територій та об'єктів природно-заповідного фонду",91]
[89,"Невиконання вимог екологічної безпеки у процесі впровадження відкриттів, винаходів, корисних моделей, промислових зразків, раціоналізаторських пропозицій, нової техніки, технологій і систем, речовин і матеріалів","91-1"]
[90,"Перевищення лімітів та нормативів використання природних ресурсів","91-2"]
[91,"Приховування перевищення встановлених лімітів на обсяги утворення та розміщення відходів","91-3"]
[92,"Відмова від надання чи несвоєчасне надання екологічної інформації","91-4"]
[93,"Порушення вимог законодавства у сфері оцінки впливу на довкілля","91-5"]
[94,"Порушення правил охорони і використання пам'яток історії та культури",92]
[95,"Порушення законодавства про Національний архівний фонд та архівні установи","92-1"]
[96,"Порушення вимог законодавчих та інших нормативних актів з безпечного ведення робіт у галузях промисловості",93]
[97,"Порушення вимог законодавчих та інших нормативних актів про зберігання, використання та облік вибухових матеріалів у галузях промисловості",94]
[98,"Порушення правил і норм ядерної та радіаційної безпеки",95]
[99,"Порушення вимог нормативно-правових актів та нормативних документів з питань технічної експлуатації електричних станцій і мереж, енергетичного обладнання (Порушення вимог нормативно-правових актів щодо технічної експлуатації електричних станцій і мереж, енергетичного обладнання)","95-1"]
[100,"Порушення вимог законодавства, будівельних норм, державних стандартів і правил під час будівництва (Недодержання будівельних норм, державних стандартів, норм і правил під час проектування і будівництва)",96]
[101,"Порушення законодавства під час планування і забудови територій","96-1"]
[102,"В И К Л Ю Ч Е Н А",97]
[103,"Марнотратне витрачання паливно-енергетичних ресурсів",98]
[104,"Порушення Правил охорони електричних мереж  ",99]
[105,"Порушення, зв'язані з використанням газу",101]
[106,"Недотримання вимог щодо ефективного використання паливно-енергетичних ресурсів","101-1"]
[107,"Порушення, пов'язані з неефективною експлуатацією паливо- і енерговикористовуючого устаткування",102]
[108,"Непідготовленість до роботи резервного паливного господарства",103]
[109,"Порушення правил користування енергією чи газом","103-1"]
[110,"Пошкодження газопроводів при провадженні робіт","103-2"]
[111,"Потрава посівів, зіпсуття або знищення зібраного врожаю сільськогосподарських культур, пошкодження насаджень колективних сільськогосподарських підприємств, інших державних і громадських чи фермерських господарств",104]
[112,"Порушення порядку та умов ведення насінництва та розсадництва","104-1"]
[113,"Порушення правил щодо боротьби з карантинними шкідниками і хворобами рослин та бур'янами",105]
[114,"Ввезення в Україну, вивезення з України, транзит через її територію, вивезення з карантинних зон або ввезення до них об'єктів регулювання, які не пройшли фітосанітарного контролю",106]
[115,"Невжиття заходів щодо забезпечення охорони посівів снотворного маку чи конопель, місць їх зберігання та переробки","106-1"]
[116,"Незаконні посів та вирощування снотворного маку чи конопель","106-2"]
[117,"Порушення правил щодо карантину тварин та інших ветеринарно-санітарних вимог",107]
[118,"Порушення законодавства про племінну справу у тваринництві","107-1"]
[119,"Порушення вимог законодавства про ідентифікацію та реєстрацію тварин","107-2"]
[120,"Грубе порушення механізаторами правил технічної експлуатації сільськогосподарських машин і техніки безпеки",108]
[121,"Порушення правил по охороні порядку і безпеки руху на залізничному транспорті",109]
[122,"Порушення правил користування засобами залізничного транспорту",110]
[123,"Порушення правил безпеки польотів",111]
[124,"Порушення правил поведінки на повітряному судні",112]
[125,"Порушення правил міжнародних польотів",113]
[126,"Порушення правил по охороні порядку і безпеки руху на морському транспорті",114]
[127,"Порушення правил користування засобами морського транспорту",115]
[128,"Порушення правил по охороні порядку і безпеки руху на річковому транспорті і маломірних суднах",116]
[129,"Порушення правил випуску судна в плавання або допуск до керування судном осіб, які не мають відповідного документа","116-1"]
[130,"Порушення правил, що забезпечують безпеку експлуатації суден на внутрішніх водних шляхах","116-2"]
[131,"Порушення правил реєстрації торговельних суден","116-3"]
[132,"Порушення правил користування річковими і маломірними суднами",117]
[133,"Порушення правил утримання баз (споруд) для стоянки маломірних суден",118]
[134,"Порушення правил користування засобами автомобільного транспорту та електротранспорту",119]
[135,"Порушення правил пожежної безпеки на залізничному, морському, річковому і повітряному транспорті",120]
[136," Порушення водієм правил керування транспортним засобом, правил користування ременями безпеки або мотошоломами",121,2,2,null,null,2,null,2,2,null,null,null,null,null,null,null,null,1,null,null,1,null,null,null,null,null,null,null,null,null,null,255]
[137,"Експлуатація водіями транспортних засобів, ідентифікаційні номери складових частин яких не відповідають записам у реєстраційних документах","121-1"]
[138,"Порушення правил перевезення пасажирів при наданні послуг з перевезення пасажирів ","121-2"]
[139,"Перевищення встановлених обмежень швидкості руху, проїзд на заборонний сигнал регулювання дорожнього руху та порушення інших правил дорожнього руху",122]
[140,"В И К Л Ю Ч Е Н А","122-1"]
[141,"Невиконання водіями вимог про зупинку","122-2",2,2,2,2]
[142,"В И К Л Ю Ч Е Н А","122-3"]
[143,"Залишення місця дорожньо-транспортної пригоди ","122-4",2,2,1,1,1,null,1,1,null,null,null,null,null,null,null,null,null,null,null,null,1]
[144,"Порушення вимог законодавства щодо встановлення і використання спеціальних світлових або звукових сигнальних пристроїв","122-5"]
[145," Порушення правил руху через залізничні переїзди",123,1,1,1,1]
[146,"Порушення правил дорожнього руху, що спричинило пошкодження транспортних засобів, вантажу, автомобільних доріг, вулиць, залізничних переїздів, дорожніх споруд чи іншого майна ",124,22,22,1,1,21,null,21,20,null,1,null,null,null,null,1,null,20,null,null,null,null,null,null,null,null,null,null,null,null,null,6630,5440]
[147,"Ненадання транспортних засобів поліцейським та медичним працівникам, а також ненадання військових транспортних засобів посадовим особам Військової служби правопорядку у Збройних Силах України","124-1"]
[148,"Інші порушення правил дорожнього руху",125]
[149,"Керування транспортним засобом особою, яка не має відповідних документів на право керування таким транспортним засобом або не пред'явила їх для перевірки",126,1,1,null,null,1,null,1,1,null,null,null,null,null,null,null,null,1,null,null,null,null,null,null,null,null,null,null,null,null,null,510,510]
[150,"Порушення правил дорожнього руху пішоходами, велосипедистами та особами, які керують гужовим транспортом, і погоничами тварин",127]
[151,"Порушення порядку видачі документа про технічну справність транспортного засобу та порядку видачі спеціального знака державного зразка про укладення договору обов'язкового страхування цивільно-правової відповідальності власників наземних транспортних засобів","127-1"]
[152,"Порушення порядку тимчасового затримання транспортних засобів та їх зберігання, порушення законодавства у сфері оплати послуг з паркування транспортних засобів","127-2"]
[153,"Випуск на лінію транспортних засобів, технічний стан яких не відповідає встановленим вимогам або без необхідних документів, передбачених законодавством ",128]
[154,"Порушення або невиконання правил, норм та стандартів, що стосуються забезпечення безпеки дорожнього руху ","128-1"]
[155,"Допуск до керування транспортними засобами або суднами водіїв чи судноводіїв, які перебувають у стані алкогольного, наркотичного чи іншого сп'яніння або під впливом лікарських препаратів, що знижують їх увагу та швидкість реакції, або осіб, які не мають права керування транспортним засобом ",129]
[156,"Керування транспортними засобами або суднами особами, які перебувають у стані алкогольного, наркотичного чи іншого сп'яніння або під впливом лікарських препаратів, що знижують їх увагу та швидкість реакції ",130,164,164,35,34,126,3,126,111,null,15,null,null,null,8,7,null,110,null,null,null,1,null,null,null,null,null,null,null,null,100,1193400,326400]
[157,"В И К Л Ю Ч Е Н А",131]
[158,"В И К Л Ю Ч Е Н А",132]
[159,"Порушення правил дорожнього перевезення небезпечних вантажів та правил проїзду великогабаритних і великовагових транспортних засобів автомобільними дорогами, вулицями та залізничними переїздами ","132-1"]
[160,"Порушення правил перевезення небезпечних речовин і предметів на транспорті ",133]
[161,"Порушення правил надання послуг та вимог безпеки при наданні послуг з перевезення пасажирів чи вантажів автомобільним транспортом","133-1"]
[162,"Порушення умов і правил здійснення міжнародних автомобільних перевезень пасажирів і вантажів","133-2"]
[163,"Провезення ручної кладі понад установлені норми і неоплаченого багажу",134]
[164,"Безквитковий проїзд",135]
[165,"Підроблення проїзних квитків і знаків поштової оплати","135-1"]
[166,"Порушення правил, спрямованих на забезпечення схоронності вантажів на залізничному, морському, річковому та автомобільному транспорті",136]
[167,"Порушення правил, спрямованих на забезпечення схоронності вантажів на повітряному транспорті",137]
[168,"Порушення Правил охорони магістральних трубопроводів",138]
[169,"Пошкодження автомобільних доріг, вулиць, дорожніх споруд, залізничних переїздів і технічних засобів регулювання дорожнього руху, створення перешкод для руху та невжиття необхідних заходів щодо їх усунення ",139,3,3,1,1,1,1,1,null,null,1,null,null,null,null,1]
[170,"Порушення правил, норм і стандартів при утриманні автомобільних доріг і вулиць, невжиття заходів щодо своєчасної заборони або обмеження руху чи позначення на автомобільних дорогах і вулицях місць провадження робіт ",140]
[171,"Порушення правил охорони смуги відводу автомобільних шляхів",141]
[172,"Порушення землекористувачами правил утримання ділянок, прилеглих до автомобільних шляхів",142]
[173,"Обладнання та експлуатація установок проводового мовлення без належної реєстрації або дозволу",144]
[174,"Порушення умов і правил, що регламентують діяльність у сфері телекомунікацій, поштового зв'язку та користування радіочастотним ресурсом України, передбачену ліцензіями, дозволами",145]
[175,"Порушення правил реалізації, експлуатації радіоелектронних засобів та випромінювальних пристроїв, а також користування радіочастотним ресурсом України",146]
[176,"Порушення правил охорони ліній і споруд зв'язку",147]
[177,"Пошкодження таксофонів",148]
[178,"Порушення Правил надання та отримання телекомунікаційних послуг","148-1"]
[179,"Порушення порядку та умов надання послуг зв'язку в мережах загального користування","148-2"]
[180,"Використання засобів зв'язку з метою, що суперечить інтересам держави, з метою порушення громадського порядку та посягання на честь і гідність громадян ","148-3"]
[181,"Використання технічних засобів та обладнання, що застосовуються в мережах зв'язку загального користування, без документа про підтвердження відповідності","148-4"]
[182,"Порушення правил про взаємоз'єднання телекомунікаційних мереж загального користування","148-5"]
[183,"Порушення порядку взяття на облік та строків заселення жилих будинків і жилих приміщень",149]
[184,"Порушення порядку ведення єдиного державного реєстру громадян, які потребують поліпшення житлових умов","149-1"]
[185,"Порушення правил користування жилими будинками і жилими приміщеннями",150]
[186,"Самоправне зайняття жилого приміщення",151]
[187,"Порушення державних стандартів, норм і правил у сфері благоустрою населених пунктів, правил благоустрою територій населених пунктів",152]
[188,"Порушення правил паркування транспортних засобів","152-1"]
[189,"Знищення або пошкодження зелених насаджень або інших об'єктів озеленення населених пунктів",153]
[190,"Порушення правил тримання собак і котів",154]
[191,"Порушення правил торгівлі і надання послуг працівниками торгівлі, громадського харчування та сфери послуг, громадянами, які займаються підприємницькою діяльністю",155]
[192,"Порушення порядку проведення розрахунків","155-1"]
[193,"Обман покупця чи замовника","155-2"]
[194,"Порушення правил торгівлі пивом, алкогольними, слабоалкогольними напоями і тютюновими виробами",156]
[195,"Порушення законодавства про захист прав споживачів","156-1"]
[196,"Порушення встановленого порядку промислової переробки, зберігання, транспортування або знищення конфіскованих спирту, алкогольних напоїв чи тютюнових виробів","156-2"]
[197,"Порушення встановлених законодавством вимог щодо заборони реклами та спонсорства тютюнових виробів","156-3"]
[198,"В И К Л Ю Ч Е Н А",157]
[199," Порушення правил торгівлі на ринках",159]
[200,"Торгівля з рук у невстановлених місцях",160]
[201,"В И К Л Ю Ч Е Н А","160-2"]
[202,"Незаконний відпуск або придбання бензину чи інших паливно-мастильних матеріалів",161]
[203,"Порушення правил про валютні операції",162]
[204,"Ухилення від повернення виручки в іноземній валюті","162-1"]
[205,"Незаконне відкриття або використання за межами України валютних рахунків","162-2"]
[206,"Порушення правил здачі дорогоцінних металів і дорогоцінного каміння","162-3"]
[207,"Розміщення цінних паперів без реєстрації їх випуску або порушення порядку здійснення емісії цінних паперів ",163]
[208,"Порушення порядку ведення податкового обліку, надання аудиторських висновків","163-1",6,6,null,null,6,null,6,6,null,null,null,null,null,null,null,null,6,null,null,null,null,null,null,null,null,null,null,null,null,null,510,340]
[209,"Неподання або несвоєчасне подання платіжних доручень на перерахування належних до сплати податків та зборів (обов'язкових платежів)","163-2"]
[210,"Невиконання законних вимог посадових осіб органів доходів і зборів ","163-3"]
[211,"Порушення порядку утримання та перерахування податку на доходи фізичних осіб і подання відомостей про виплачені доходи","163-4",22,22,3,3,19,null,19,19,null,null,null,null,null,null,null,null,19,null,null,null,null,null,null,null,null,null,null,null,null,null,646,476]
[212,"Приховування інформації про діяльність емітента","163-5"]
[213,"Неподання документів, подання яких передбачено законодавством про депозитарну систему України","163-6"]
[214,"Діяльність на фондовому ринку без ліцензії","163-7"]
[215,"Маніпулювання на фондовому ринку","163-8"]
[216,"Незаконне використання інсайдерської інформації","163-9"]
[217,"Порушення порядку внесення змін до системи депозитарного обліку цінних паперів","163-10"]
[218,"Порушення порядку розкриття інформації на фондовому ринку","163-11"]
[219,"Порушення умов видачі векселів","163-12"]
[220,"Порушення порядку приймання готівки для подальшого її переказу","163-13"]
[221,"Порушення порядку здійснення операцій з електронними грошима","163-14"]
[222,"Порушення порядку проведення готівкових розрахунків та розрахунків з використанням електронних платіжних засобів за товари (послуги)","163-15"]
[223,"Порушення порядку оприлюднення фінансової звітності або консолідованої фінансової звітності","163-16"]
[224,"Порушення порядку справляння та сплати туристичного збору","163-17"]
[225,"Порушення порядку провадження господарської діяльності",164,4,4,null,null,4,null,4,null,null,4,null,null,null,4]
[226,"Порушення порядку подання декларації про доходи та ведення обліку доходів і витрат","164-1"]
[227,"Порушення законодавства з фінансових питань","164-2"]
[228,"Недобросовісна конкуренція","164-3"]
[229,"Несвоєчасне здавання виторгу","164-4"]
[230,"Зберігання або транспортування алкогольних напоїв чи тютюнових виробів, на яких немає марок акцизного збору встановленого зразка","164-5"]
[231,"Демонстрування і розповсюдження фільмів без державного посвідчення на право розповсюдження і демонстрування фільмів","164-6"]
[232,"Порушення умов розповсюдження і демонстрування фільмів, передбачених державним посвідченням на право розповсюдження і демонстрування фільмів","164-7"]
[233,"Недотримання квоти демонстрування національних фільмів при використанні національного екранного часу","164-8"]
[234,"Незаконне розповсюдження примірників аудіовізуальних творів, фонограм, відеограм, комп'ютерних програм, баз даних","164-9"]
[235,"Порушення законодавства, що регулює здійснення операцій з металобрухтом","164-10"]
[236,"Порушення законодавства про бюджетну систему України","164-12"]
[237,"Порушення законодавства, що регулює виробництво, експорт, імпорт дисків для лазерних систем зчитування, матриць, експорт, імпорт обладнання чи сировини для їх виробництва","164-13"]
[238,"Порушення законодавства про закупівлі","164-14"]
[239,"Приховування стійкої фінансової неспроможності","164-15"]
[240,"Зайняття забороненими видами господарської діяльності","164-16"]
[241,"Порушення умов і правил, що визначають порядок припинення порушень авторського права і (або) суміжних прав з використанням мережі Інтернет","164-17"]
[242,"Наведення завідомо недостовірної інформації у заявах про припинення авторського права і (або) суміжних прав, вчинених з використанням мережі Інтернет","164-18"]
[243,"Порушення порядку надання інформації, необхідної для здійснення оцінки фіскальних ризиків, та невжиття заходів у сфері управління фіскальними ризиками","164-19"]
[244,"Порушення законодавства у сфері загальнообов'язкового державного пенсійного страхування","165-1"]
[245,"Порушення порядку формування та застосування цін і тарифів","165-2"]
[246,"Порушення строку реєстрації як платника страхових внесків до Фонду загальнообов'язкового державного соціального страхування України на випадок безробіття, несвоєчасна або неповна сплата страхових внесків","165-3"]
[247,"Порушення законодавства про загальнообов'язкове державне соціальне страхування від нещасного випадку на виробництві та професійного захворювання, які спричинили втрату працездатності","165-4"]
[248,"Порушення законодавства про загальнообов'язкове державне соціальне страхування у зв'язку з тимчасовою втратою працездатності","165-5"]
[249,"Зловживання монопольним становищем на ринку","166-1"]
[250,"Неправомірні угоди між підприємц","166-2"]
[251,"Дискримінація підприємців органами влади i управління","166-3"]
[252,"Порушення порядку подання інформації та виконання рішень Антимонопольного комітету України та його територіальних відділень","166-4"]
[253,"Порушення банківського законодавства, законодавства, яке регулює переказ коштів в Україні, нормативно-правових актів Національного банку України або здійснення ризикових операцій, які загрожують інтересам вкладників чи інших кредиторів банку ","166-5"]
[254,"Порушення порядку припинення юридичної особи або підприємницької діяльності фізичної особи - підприємця","166-6"]
[255,"Протидія тимчасовій адміністрації або ліквідації банку","166-7"]
[256,"Порушення порядку зайняття діяльністю з надання фінансових послуг (Здійснення банківської діяльності без банківської ліцензії)","166-8"]
[257,"Порушення законодавства щодо запобігання та протидії легалізації (відмиванню) доходів, одержаних злочинним шляхом, фінансуванню тероризму та фінансуванню розповсюдження зброї масового знищення","166-9"]
[258,"Порушення вимог законодавства з питань видачі документів дозвільного характеру (Порушення порядку видачі документа дозвільного характеру)","166-10"]
[259,"Порушення законодавства про державну реєстрацію юридичних осіб, фізичних осіб - підприємців та громадських формувань","166-11"]
[260,"Порушення законодавства у сфері ліцензування видів господарської діяльності","166-12"]
[261,"Порушення законодавства, що регулює фінансові механізми здійснення інвестицій у будівництво житла","166-13"]
[262,"Недотримання особою обов'язкових умов щодо приватизації державного, комунального майна або підприємств та їх подальшого використання","166-14"]
[263,"Незаконні дії щодо приватизаційних паперів","166-15"]
[264,"Незаконні дії у разі банкрутства","166-16"]
[265,"Фіктивне банкрутство","166-17"]
[266,"Примушування до антиконкурентних узгоджених дій","166-18"]
[267,"Порушення законодавства у сфері гарантування вкладів фізичних осіб","166-19"]
[268,"Порушення законів України та нормативно-правових актів Національного банку України щодо здійснення нагляду (оверсайту) платіжних систем та систем розрахунків (далі - платіжні системи)","166-20"]
[269,"Порушення порядку здійснення державного нагляду (контролю) у сфері господарської діяльності","166-21"]
[270,"Порушення вимог законодавства про безпечність та окремі показники якості харчових продуктів","166-22"]
[271,"Порушення порядку державної реєстрації речових прав на нерухоме майно та їх обтяжень","166-23"]
[272,"Введення в обіг або реалізація продукції, яка не відповідає вимогам стандартів",167]
[273,"В И К Л Ю Ч Е Н А",168]
[274,"Виконання робіт, надання послуг громадянам-споживачам, що не відповідають вимогам стандартів, норм і правил","168-1"]
[275,"Випуск у продаж продукції з порушенням вимог щодо медичних попереджень споживачів тютюнових виробів","168-2"]
[276,"Передача замовнику або у виробництво документації, яка не відповідає вимогам стандартів",169]
[277," Недодержання стандартів при транспортуванні, зберіганні і використанні продукції (крім харчових продуктів) ",170]
[278,"Введення в обіг продукції, щодо якої немає сертифіката відповідності або свідоцтва про визнання відповідності чи декларації про відповідність, а також неправомірне застосування національного знака відповідності","170-1"]
[279,"Порушення вимог щодо випуску з ремонту та видачі на прокат засобів вимірювальної техніки",171]
[280,"Порушення умов і правил проведення повірки засобів вимірювальної техніки","171-1"]
[281,"Фальсифікація засобів вимірювання","171-2"]
[282,"Порушення правил застосування засобів вимірювальної техніки",172]
[283,"Порушення процедур оцінки відповідності","172-1"]
[284,"Порушення посадовими особами фітосанітарної лабораторії законодавства України про карантин рослин","172-1-1"]
[285,"В И К Л Ю Ч Е Н А","172-2"]
[286,"В И К Л Ю Ч Е Н А","172-3"]
[287,"Порушення обмежень щодо сумісництва та суміщення з іншими видами діяльності","172-4"]
[288,"Порушення встановлених законом обмежень щодо одержання дарунка (пожертви)","172-5"]
[289,"Порушення вимог фінансового контролю","172-6",2,2,null,null,1,1,1,1,null,null,null,null,null,null,null,null,1,null,null,null,null,null,null,null,null,null,null,null,null,null,850,850]
[290,"Порушення вимог щодо повідомлення про конфлікт інтересів","172-7",1,1,null,null,1,null,1,null,null,1,null,null,null,null,1]
[291,"Незаконне використання інформації, що стала відома особі у зв'язку з виконанням службових або інших визначених законом повноважень","172-8"]
[292,"Невжиття заходів щодо протидії корупції","172-9"]
[293,"Порушення заборони розміщення ставок на спорт, пов'язаних з маніпулюванням офіційним спортивним змаганням","172-9-1"]
[294,"Відмова від виконання наказу або інших законних вимог командира (начальника)","172-10"]
[295,"Самовільне залишення військової частини або місця служби","172-11"]
[296,"Необережне знищення або пошкодження військового майна","172-12"]
[297,"Зловживання військовою службовою особою владою або службовим становищем","172-13"]
[298,"Перевищення військовою службовою особою влади чи службових повноважень","172-14"]
[299,"Недбале ставлення до військової служби","172-15"]
[300,"Бездіяльність військової влади","172-16"]
[301,"Порушення правил несення бойового чергування","172-17"]
[302,"Порушення правил несення прикордонної служби","172-18"]
[303,"Порушення правил поводження із зброєю, а також речовинами і предметами, що становлять підвищену небезпеку для оточення","172-19"]
[304,"Розпивання пива, алкогольних, слабоалкогольних напоїв військовослужбовцями","172-20"]
[305,"Дрібне хуліганство",173,24,24,14,14,10,null,10,7,null,3,null,null,null,null,3,null,7,null,null,null,null,null,null,null,null,null,null,null,null,null,646,510]
[306,"Поширювання неправдивих чуток","173-1"]
[307,"Вчинення домашнього насильства, насильства за ознакою статі, невиконання термінового заборонного припису або неповідомлення про місце свого тимчасового перебування","173-2",61,61,27,27,34,null,34,26,null,8,null,null,null,5,2,null,26,null,null,null,null,null,null,null,null,null,null,null,null,null,4420,3060]
[308,"Виготовлення та пропаганда георгіївської (гвардійської) стрічки","173-3"]
[309,"Булінг (цькування) учасника освітнього процесу","173-4"]
[310,"Стрільба з вогнепальної, холодної метальної чи пневматичної зброї, пристроїв для відстрілу патронів, споряджених гумовими чи аналогічними за своїми властивостями метальними снарядами несмертельної дії, в населених пунктах і в не відведених для цього місцях або з порушенням установленого порядку ",174]
[311,"Порушення встановлених законодавством вимог пожежної безпеки",175,1,1,1,1]
[312,"Куріння тютюнових виробів у заборонених місцях","175-1"]
[313,"Здійснення суб'єктом господарювання господарської діяльності без декларації відповідності матеріально-технічної бази суб'єкта господарювання вимогам законодавства у сфері пожежної безпеки","175-2"]
[314,"Виготовлення, зберігання самогону та апаратів для його вироблення",176]
[315,"Придбання самогону та інших міцних спиртних напоїв домашнього вироблення",177]
[316,"Виготовлення, придбання, зберігання або реалізація фальсифікованих алкогольних напоїв або тютюнових виробів","177-2"]
[317,"Розпивання пива, алкогольних, слабоалкогольних напоїв у заборонених законом місцях або поява у громадських місцях у п'яному вигляді",178,5,5,2,2,3,null,3,null,2,1,null,null,null,null,1]
[318,"Розпивання пива, алкогольних, слабоалкогольних напоїв на виробництві",179]
[319,"Доведення неповнолітнього до стану сп'яніння",180]
[320,"Порушення порядку перебування дітей у закладах, у яких проводиться діяльність у сфері розваг або закладах громадського харчування","180-1"]
[321,"Азартні ігри, ворожіння в громадських місцях",181]
[322,"Заняття проституцією","181-1"]
[323,"Порушення вимог законодавчих та інших нормативно-правових актів щодо захисту населення від шкідливого впливу шуму чи правил додержання тиші в населених пунктах і громадських місцях",182]
[324,"Завідомо неправдивий виклик спеціальних служб",183]
[325,"Несплата аліментів","183-1",21,21,3,3,17,1,17,16,null,1,null,null,null,1,null,null,null,null,null,null,null,16]
[326,"Ухилення особи від відбування адміністративного стягнення у виді суспільно корисних робіт","183-2",3,3,null,null,3,null,3,null,null,3,null,null,null,2,1]
[327,"Невиконання батьками або особами, що їх замінюють, обов'язків щодо виховання дітей",184,2,2,null,null,2,null,2,1,null,1,null,null,null,null,1,null,1,null,null,null,null,null,null,null,null,null,null,null,null,null,850]
[328,"Неправомірне використання державного майна","184-1"]
[329,"Порушення порядку або строків подання інформації про дітей-сиріт і дітей, які залишилися без опіки (піклування) батьків","184-2"]
[330,"Незаконне використання найменування та ознак належності до Національної поліції України","184-3"]
[331,"Злісна непокора законному розпорядженню або вимозі поліцейського, члена громадського формування з охорони громадського порядку і державного кордону, військовослужбовця ",185,26,26,18,18,8,null,8,4,null,4,null,null,null,1,3,null,4,null,null,null,null,null,null,null,null,null,null,null,null,null,646,170]
[332,"Порушення порядку організації і проведення зборів, мітингів, вуличних походів і демонстрацій","185-1"]
[333,"Створення умов для організації і проведення з порушенням установленого порядку зборів, мітингів, вуличних походів або демонстрацій","185-2"]
[334,"Прояв неповаги до суду","185-3"]
[335,"Злісне ухилення свідка, потерпілого, експерта, перекладача від явки до органів досудового розслідування чи прокурора","185-4"]
[336," Перешкодження явці до суду народного засідателя, присяжного ","185-5"]
[337,"Невжиття заходів щодо окремої ухвали суду","185-6"]
[338," Публічні заклики до невиконання вимог поліцейського чи посадової особи Військової служби правопорядку у Збройних Силах України ","185-7"]
[339,"Ухилення від виконання законних вимог прокурора","185-8"]
[340,"Злісна непокора законному розпорядженню або вимозі працівника транспорту, який здійснює контроль за перевезенням пасажирів","185-9"]
[341,"Злісна непокора законному розпорядженню чи вимозі військовослужбовця або працівника Державної прикордонної служби України або члена громадського","185-10"]
[342,"Розголошення відомостей про заходи безпеки щодо особи, взятої під захист","185-11"]
[343,"Створення перешкод у виконанні робіт, пов'язаних з обслуговуванням об'єктів електроенергетики","185-12"]
[344,"Невиконання законних вимог посадових осіб Національного антикорупційного бюро України","185-13"]
[345,"Самоуправство",186]
[346,"Незаконні дії щодо державних нагород","186-1"]
[347,"В И К Л Ю Ч Е Н А","186-2"]
[348,"Порушення порядку подання або використання даних державних статистичних спостережень","186-3"]
[349,"В И К Л Ю Ч Е Н А","186-4"]
[350,"Порушення законодавства про об'єднання громадян","186-5"]
[351,"Порушення законодавства про друковані засоби масової інформації","186-6"]
[352,"Недоставляння або порушення строку доставляння обов'язкового безоплатного примірника документів","186-7"]
[353,"Незаконне носіння військової форми одягу із знаками розрізнення військовослужбовців","186-8"]
[354,"Порушення правил адміністративного нагляду",187,27,27,10,10,17,null,17,15,null,2,null,null,null,2,null,null,15,null,null,null,null,null,null,null,null,null,null,null,null,null,2805,170]
[355,"Незаконна передача заборонених предметів особам, яких тримають у слідчих ізоляторах, установах виконання покарань",188]
[356,"Невиконання розпорядження державного або іншого органу про працевлаштування","188-1"]
[357,"Ухилення від виконання законних вимог посадових осіб центрального органу виконавчої влади, що реалізує державну політику у сфері державного контролю за додержанням законодавства про захист прав споживачів ","188-2"]
[358,"Невиконання законних вимог посадових осіб центрального органу виконавчої влади, що реалізує державну політику у сфері контролю за цінами","188-3"]
[359,"Невиконання законних вимог центрального органу виконавчої влади, що реалізує державну політику у сфері охорони праці ","188-4"]
[360,"Невиконання законних розпоряджень чи приписів посадових осіб органів, які здійснюють державний контроль у галузі охорони навколишнього природного середовища, використання природних ресурсів, радіаційної безпеки або охорону природних ресурсів","188-5"]
[361,"Невиконання законних вимог посадових осіб центрального органу виконавчої влади, що реалізує державну політику з питань нагляду та контролю за додержанням законодавства про працю, або створення перешкод для діяльності цього органу ","188-6"]
[362,"Невиконання законних вимог національної комісії, що здійснює державне регулювання у сфері зв'язку та інформатизації","188-7"]
[363,"Невиконання приписів та постанов посадових осіб центрального органу виконавчої влади, що реалізує державну політику з питань нагляду та контролю за додержанням законодавства про пожежну і техногенну безпеку ","188-8"]
[364,"Невиконання законних вимог посадових осіб центрального органу виконавчої влади, що реалізує державну політику у сфері стандартизації, метрології та метрологічної діяльності і технічного регулювання","188-9"]
[365,"Невиконання законних вимог посадових осіб центрального органу виконавчої влади, що реалізує державну політику у сфері контролю якості та безпеки лікарських засобів ","188-10"]
[366,"Невиконання постанов, розпоряджень, приписів, висновків, а так само інших законних вимог посадових осіб органів державної санітарно-епідеміологічної служби ","188-11"]
[367,"Невиконання законних вимог посадових осіб спеціально уповноважених органів виконавчої влади у сфері захисту рослин","188-12"]
[368,"Невиконання законних вимог державного виконавця","188-13"]
[369,"Невиконання законних вимог посадових осіб центрального органу виконавчої влади, що реалізує державну політику у сфері енергозбереження ","188-14"]
[370,"Невиконання законних вимог посадових осіб органів морського і річкового транспорту","188-15"]
[371,"Невиконання законних вимог посадових осіб центрального органу виконавчої влади, що реалізує державну політику з питань цивільного захисту, нагляду та контролю за станом захисту територій від надзвичайних ситуацій природного та техногенного характеру ","188-16",1,1,null,null,1,null,1,1,null,null,null,null,null,null,null,null,1,null,null,null,null,null,null,null,null,null,null,null,null,null,170,170]
[372,"Невиконання законних вимог посадових осіб центрального органу виконавчої влади, що реалізує державну політику у сфері державного експортного контролю ","188-17"]
[373,"Невиконання законних вимог (приписів) посадових осіб органів державного регулювання ядерної та радіаційної безпеки","188-18"]
[374,"Невиконання законних вимог народного депутата України, Рахункової палати, члена Рахункової палати","188-19"]
[375,"Невиконання (ухилення від виконання) або несвоєчасне виконання приписів посадових осіб центрального органу виконавчої влади з державного енергетичного нагляду чи розпоряджень його органів","188-20"]
[376,"Ухилення від виконання або несвоєчасне виконання рішень національної комісії, що здійснює державне регулювання у сфері енергетики ","188-21"]
[377,"Невиконання законних вимог посадових осіб державної санітарно-епідеміологічної служби та державної служби ветеринарної медицини","188-22"]
[378,"Перешкоджання уповноваженим особам органів доходів і зборів, Пенсійного фонду України, фондів загальнообов'язкового державного соціального страхування у проведенні перевірок","188-23"]
[379,"В И К Л Ю Ч Е Н А","188-24"]
[380,"Невиконання законних вимог (приписів) посадових осіб центрального органу виконавчої влади, що реалізує державну політику у сфері страхового фонду документації ","188-25"]
[381,"Невиконання законних вимог Головного державного фітосанітарного інспектора України, головних державних фітосанітарних інспекторів, державних фітосанітарних інспекторів ","188-26"]
[382,"Невиконання законних вимог інспекторів сільського господарства ","188-27"]
[383,"Невиконання законних вимог посадових осіб уповноважених підрозділів Національної поліції","188-28"]
[384,"Невиконання законних вимог посадових осіб національної комісії, що здійснює державне регулювання у сфері ринків фінансових послуг","188-29"]
[385,"Ухилення від виконання або несвоєчасне виконання законних вимог Національної комісії з цінних паперів та фондового ринку або її уповноважених осіб ","188-30"]
[386,"Невиконання законних вимог посадових осіб органів Державної служби спеціального зв'язку та захисту інформації України","188-31"]
[387,"Невиконання законних вимог Вищої ради правосуддя, її органу або члена Вищої ради правосуддя","188-32"]
[388,"Невиконання законних вимог посадових осіб органів охорони культурної спадщини\n","188-33"]
[389,"Невиконання законних вимог посадових осіб суб'єктів державного фінансового моніторингу","188-34"]
[390,"Невиконання законних вимог Вищої кваліфікаційної комісії суддів України, Кваліфікаційно-дисциплінарної комісії прокурорів або членів цих органів щодо надання інформації ","188-35"]
[391,"Невиконання законних вимог посадових осіб національної комісії, що здійснює державне регулювання у сферах енергетики та комунальних послуг","188-36"]
[392,"Невиконання законних вимог посадових осіб органів ринкового нагляду та їх територіальних органів ","188-37"]
[393,"Невиконання приписів посадових осіб спеціально уповноваженого органу з питань дозвільної системи у сфері господарської діяльності","188-38"]
[394,"Порушення законодавства у сфері захисту персональних даних","188-39"]
[395,"Невиконання законних вимог Уповноваженого Верховної Ради України з прав людини","188-40"]
[396,"Порушення законодавства про державну реєстрацію нормативно-правових актів","188-41"]
[397,"Невиконання законних вимог (приписів) посадових осіб органів державного архітектурно-будівельного контролю та нагляду","188-42"]
[398,"В И К Л Ю Ч Е Н А","188-43"]
[399,"Невиконання законних вимог посадових осіб центрального органу виконавчої влади, що реалізує державну регуляторну політику, політику з питань нагляду (контролю) у сфері господарської діяльності, ліцензування та дозвільної системи у сфері господарської діяльності та дерегуляції господарської діяльності","188-45"]
[400,"Невиконання законних вимог (приписів) Національного агентства з питань запобігання корупції","188-46"]
[401,"Порушення встановленого законом порядку отримання інформації з Єдиного державного реєстру, держателем якого є Державтоінспекція Міністерства внутрішніх справ України, Державного реєстру речових прав на нерухоме майно, Державного земельного кадастру","188-47"]
[402,"Невиконання законних вимог посадових осіб Національного агентства України з питань виявлення, розшуку та управління активами, одержаними від корупційних та інших злочинів","188-48"]
[403,"Невиконання законних вимог судді Конституційного Суду України, Колегії суддів, Сенату, Великої палати Конституційного Суду України","188-49"]
[404,"Невиконання законних вимог посадових (службових) осіб органу опіки та піклування","188-50"]
[405,"Невиконання законних вимог Комісії з питань осіб, зниклих безвісти за особливих обставин, члена Комісії з питань осіб, зниклих безвісти за особливих обставин","188-51"]
[406,"Порушення правил відкриття та функціонування штемпельно-граверних майстерень",189]
[407,"Порушення порядку видобутку, виробництва, використання та реалізації дорогоцінних металів і дорогоцінного каміння, дорогоцінного каміння органогенного утворення та напівдорогоцінного каміння","189-1"]
[408,"Порушення правил виготовлення та порядку обліку і зберігання печаток та штампів, а так само виготовлення, ввезення, реалізація та використання самонабірних печаток","189-2"]
[409,"Незаконне виготовлення, збут або використання державного пробірного клейма","189-3"]
[410,"Порушення громадянами порядку придбання, зберігання, передачі іншим особам або продажу вогнепальної, холодної чи пневматичної зброї",190]
[411,"Порушення громадянами правил зберігання, носіння або перевезення нагородної, вогнепальної, холодної чи пневматичної зброї і бойових припасів",191,1,1,null,null,1,null,1,1,null,null,null,null,null,null,null,null,1,null,null,null,null,null,null,null,null,null,null,null,null,null,170,170]
[412,"Порушення громадянами строків реєстрації (перереєстрації) нагородної, вогнепальної, холодної чи пневматичної зброї і правил взяття її на облік ",192]
[413,"Ухилення від реалізації вогнепальної, холодної чи пневматичної зброї і бойових припасів",193]
[414,"Порушення працівниками торговельних підприємств (організацій) порядку продажу вогнепальної, холодної чи пневматичної зброї і бойових припасів",194]
[415,"Порушення працівниками підприємств, установ, організацій правил зберігання або перевезення вогнепальної, холодної чи пневматичної зброї і бойових припасів",195]
[416,"Порушення порядку розробки, виготовлення, реалізації спеціальних засобів самооборони","195-1"]
[417,"Порушення порядку придбання, зберігання, реєстрації або обліку газових пістолетів і револьверів та патронів до них","195-2",1,1,null,null,1,null,1,1,null,null,null,null,null,null,null,null,1,null,null,null,null,null,null,null,null,null,null,null,null,null,34,34]
[418,"Порушення правил застосування спеціальних засобів самооборони","195-3"]
[419,"Порушення порядку виробництва, придбання, зберігання чи продажу електрошокових пристроїв і спеціальних засобів, що застосовуються правоохоронними органами","195-4"]
[420,"Незаконне зберігання спеціальних технічних засобів негласного отримання інформації ","195-5"]
[421,"Порушення порядку виробництва, зберігання, перевезення, торгівлі та використання піротехнічних засобів","195-6"]
[422,"Порушення правил навчання карате",196]
[423,"Проживання без паспорта громадянина України або без реєстрації місця проживання",197]
[424,"Умисне зіпсуття паспорта чи втрата його з необережності",198]
[425,"Допущення проживання без паспорта",199]
[426,"Прийняття на роботу без паспорта",200]
[427,"Незаконне вилучення паспортів і прийняття їх у заставу",201]
[428,"Порушення прикордонного режиму, режиму в пунктах пропуску через державний кордон України або режимних правил у контрольних пунктах в'їзду - виїзду",202]
[429,"Порушення іноземцями та особами без громадянства правил перебування в Україні і транзитного проїзду через територію України",203]
[430,"Невиконання рішення про заборону в’їзду в Україну","203-1"]
[431,"Порушення порядку працевлаштування, прийняття на навчання, надання житла, реєстрації іноземців та осіб без громадянства та оформлення для них документів",204]
[432,"Незаконне перетинання або спроба незаконного перетинання державного кордону України","204-1"]
[433,"Порушення порядку в'їзду на тимчасово окуповану територію України та виїзду з неї","204-2"]
[434,"Порушення порядку переміщення товарів до району або з району проведення антитерористичної операції","204-3"]
[435,"Порушення порядку в’їзду до району проведення антитерористичної операції або виїзду з нього","204-4"]
[436,"Невжиття заходів до забезпечення своєчасної реєстрації іноземців і осіб без громадянства",205]
[437,"Порушення порядку надання іноземцям та особам без громадянства житла, транспортних засобів та сприяння в наданні інших послуг",206]
[438,"Незаконне перевезення іноземців та осіб без громадянства територією України","206-1"]
[439,"Неповернення капітаном іноземного судна перепусток на право сходження на берег осіб суднового екіпажу",207]
[440,"Порушення військовозобов'язаними чи призовниками законодавства про загальний військовий обов'язок і військову службу",210]
[441,"Порушення законодавства про мобілізаційну підготовку та мобілізацію","210-1"]
[442,"Умисне зіпсуття обліково-військових документів чи втрата їх з необережності",211]
[443,"Неявка на виклик у військовий комісаріат","211-1"]
[444,"Неподання у військові комісаріати списків юнаків, які підлягають приписці до призовних дільниць","211-2"]
[445,"Прийняття на роботу військовозобов'язаних і призовників, які не перебувають на військовому обліку","211-3"]
[446,"Незабезпечення сповіщення військовозобов'язаних і призовників про їх виклик у військові комісаріати, перешкода їх своєчасній явці на збірні пункти чи призовні дільниці","211-4"]
[447,"Несвоєчасне подання документів, необхідних для ведення військового обліку військовозобов'язаних і призовників, несповіщення їх про виклик у військові комісаріати","211-5"]
[448,"Неподання відомостей про військовозобов'язаних і призовників","211-6"]
[449,"Повідомлення неправдивих відомостей державним органам реєстрації актів цивільного стану та несвоєчасна реєстрація народження дитини","212-1"]
[450,"Порушення законодавства про державну таємницю","212-2"]
[451,"Порушення права на інформацію та права на звернення","212-3"]
[452,"Порушення законодавства в галузі державного експортного контролю","212-4"]
[453,"Порушення порядку обліку, зберігання і використання документів та інших матеріальних носіїв інформації, що містять службову інформацію","212-5"]
[454,"Здійснення незаконного доступу до інформації в інформаційних (автоматизованих) системах, незаконне виготовлення чи розповсюдження копій баз даних інформаційних (автоматизованих) систем","212-6",3,3,null,null,3,null,3,3,null,null,null,null,null,null,null,null,3,null,null,null,null,null,null,null,null,null,null,3,null,null,510,510]
[455,"Порушення порядку ведення Державного реєстру виборців, порядку подання відомостей про виборців до органів Державного реєстру виборців, виборчих комісій, порядку складання та подання списків виборців, списків громадян України, які мають право брати участь у референдумі, та використання таких списків","212-7"]
[456,"Порушення права громадянина на ознайомлення з відомостями Державного реєстру виборців, зі списком виборців, списком громадян, які мають право брати участь у референдумі","212-8"]
[457,"Порушення порядку ведення передвиборної агітації, агітації під час підготовки і проведення референдуму з використанням засобів масової інформації та порядку участі в інформаційному забезпеченні виборів","212-9"]
[458,"Порушення обмежень щодо ведення передвиборної агітації, агітація в день проведення референдуму","212-10",2,2,null,null,2,null,2,2,null,null,null,null,null,null,null,null,2,null,null,null,null,null,null,null,null,null,null,null,null,null,1020,1020]
[459,"Ненадання можливості оприлюднити відповідь щодо інформації, поширеної стосовно суб'єкта виборчого процесу","212-11"]
[460,"Порушення права на користування приміщеннями під час виборчої кампанії","212-12"]
[461,"Виготовлення або розповсюдження друкованих матеріалів передвиборної агітації, які не містять відомостей про установу, що здійснила друк, їх тираж, інформацію про осіб, відповідальних за випуск","212-13"]
[462,"Порушення порядку розміщення агітаційних матеріалів чи політичної реклами або розміщення їх у заборонених законом місцях","212-14"]
[463,"Порушення порядку надання або отримання внеску на підтримку політичної партії, порушення порядку надання або отримання державного фінансування статутної діяльності політичної партії, порушення порядку надання або отримання фінансової (матеріальної) підтримки для здійснення передвиборної агітації або агітації з всеукраїнського або місцевого референдуму","212-15"]
[464,"Замовлення або виготовлення виборчих бюлетенів понад встановлену кількість","212-16"]
[465,"Ненадання копії виборчого протоколу","212-17"]
[466,"Невиконання рішення виборчої комісії, комісії з референдуму","212-18"]
[467,"Відмова у звільненні члена виборчої комісії від виконання виробничих чи службових обов'язків або його безпідставне звільнення з роботи","212-19"]
[468,"Порушення порядку опублікування документів, пов'язаних з підготовкою і проведенням виборів, референдуму","212-20"]
[469,"Порушення порядку подання фінансового звіту про надходження і використання коштів виборчого фонду, звіту партії про майно, доходи, витрати і зобов'язання фінансового характеру","212-21"]
[470,"Митний кодекс 1991р.","ст.МК 109"]
[471,"Митний кодекс 1991р.","ст.МК 112"]
[472,"Митний кодекс 1991р.","ст.МК 113"]
[473,"Митний кодекс 1991р.","ст.МК 114"]
[474,"Митний кодекс 1991р.","ст.МК 115"]
[475,"Митний кодекс 1991р.","ст.МК 116"]
[476,"Митний кодекс 1991р.","ст.МК 117"]
[477,"Митний кодекс 1991р.","ст.МК 118"]
[478,"Кодекс Митний 2002р.","ст. 329"]
[479,"Кодекс Митний 2002р.","ст. 330"]
[480,"Кодекс Митний 2002р.","ст. 331"]
[481,"Кодекс Митний 2002р.","ст. 332"]
[482,"Кодекс Митний 2002р.","ст. 333"]
[483,"Кодекс Митний 2002р.","ст. 334"]
[484,"Кодекс Митний 2002р.","ст. 335"]
[485,"Кодекс Митний 2002р.","ст. 336"]
[486,"Кодекс Митний 2002р.","ст. 337"]
[487,"Кодекс Митний 2002р.","ст. 338"]
[488,"Кодекс Митний 2002р.","ст. 339"]
[489,"Кодекс Митний 2002р.","ст. 340"]
[490,"Кодекс Митний 2002р.","ст. 341"]
[491,"Кодекс Митний 2002р.","ст. 342"]
[492,"Кодекс Митний 2002р.","ст. 343"]
[493,"Кодекс Митний 2002р.","ст. 344"]
[494,"Кодекс Митний 2002р.","ст. 345"]
[495,"Кодекс Митний 2002р.","ст. 346"]
[496,"Кодекс Митний 2002р.","ст. 347"]
[497,"Кодекс Митний 2002р.","ст. 348"]
[498,"Кодекс Митний 2002р.","ст. 349"]
[499,"Кодекс Митний 2002р.","ст. 350"]
[500,"Кодекс Митний 2002р.","ст. 351"]
[501,"Кодекс Митний 2002р.","ст. 352"]
[502,"Кодекс Митний 2002р.","ст. 353"]
[503,"Кодекс Митний 2002р.","ст. 354"]
[504,"Кодекс Митний 2002р.","ст. 355"]
[505,"Митний кодекс 2012 р.","ст. 468"]
[506,"Митний кодекс 2012 р.","ст. 469"]
[507,"Митний кодекс 2012 р.","ст. 470"]
[508,"Митний кодекс 2012 р.","ст. 471"]
[509,"Митний кодекс 2012 р.","ст. 472"]
[510,"Митний кодекс 2012 р.","ст. 473"]
[511,"Митний кодекс 2012 р.","ст. 474"]
[512,"Митний кодекс 2012 р.","ст. 475"]
[513,"Митний кодекс 2012 р.","ст. 476"]
[514,"Митний кодекс 2012 р.","ст. 477"]
[515,"Митний кодекс 2012 р.","ст. 478"]
[516,"Митний кодекс 2012 р.","ст. 479"]
[517,"Митний кодекс 2012 р.","ст. 480"]
[518,"Митний кодекс 2012 р.","ст. 481"]
[519,"Митний кодекс 2012 р.","ст. 482"]
[520,"Митний кодекс 2012 р.","ст. 483"]
[521,"Митний кодекс 2012 р.","ст. 484"]
[522,"Митний кодекс 2012 р.","ст. 485"]
[523,"інші статті","ст. інші"]

{"sheet":"Розділ 2 ","index":2,"n_rows":531,"n_cols":18,"rows_kept":531,"cut":false,"hidden":false,"merged":[[2,3,6,3],[3,16,6,16],[2,8,2,17],[3,5,6,5],[3,13,6,13],[3,9,6,9],[2,4,2,7],[3,6,6,6],[3,4,6,4],[3,17,6,17],[0,0,0,17],[1,3,1,17],[1,0,6,0],[1,1,6,1],[1,2,6,2],[3,11,6,11],[3,12,6,12],[3,15,6,15],[3,8,6,8],[3,14,6,14],[3,7,6,7],[3,10,6,10]]}
["Розділ 2. Склад осіб притягнутих до адміністративної відповідальності"]
["№ з/п","Назва статті Кодексу України про адміністративні правопорушення або адміністративного правопорушення, яке не ввійшло до Кодексу, але передбачене іншими законодавчими чи нормативними актами","Номер статті","Кількість осіб притягнутих до адміністративної відповідальності"]
[null,null,null,"Усього","з них",null,null,null,"рід зайняття"]
[null,null,null,null,"громадян іншої держави","жінок","внутрішньо переміщених","осіб з інвалідністю","робітники","державні службовці","судді \n","прокурори","інші службовці","військовослужбовці","пенсіонери","безробітні","працездатні, які не працювали і не навчалися ","інші заняття"]
[]
[]
[]
["А","Б","В",1,2,3,4,5,6,7,8,9,10,11,12,13,14,15]
[1,"УСЬОГО, з них",null,{"$f":"SUM(D10:D531)","v":251},1,28,0,0,49,1,0,0,27,0,15,0,148,11]
[2,"Порушення вимог законодавства про працю та про охорону праці",41]
[3,"Ухилення від участі в переговорах щодо укладення, зміни або доповнення колективного договору, угоди","41-1"]
[4,"Порушення чи невиконання колективного договору, угоди","41-2"]
[5,"Ненадання інформації для ведення колективних переговорів і здійснення контролю за виконанням колективних договорів, угод","41-3"]
[6,"Порушення санітарних норм",42]
[7,"Виробництво, заготівля, реалізація сільськогосподарської продукції, що містить хімічні препарати понад гранично допустимі рівні концентрації","42-1"]
[8,"Заготівля, переробка або збут радіоактивно забруднених продуктів харчування чи іншої продукції","42-2"]
[9,"Виробництво, зберігання, транспортування або реалізація продуктів харчування чи продовольчої сировини, забруднених мікроорганізмами та іншими біологічними агентами понад гранично допустимі рівні","42-3"]
[10,"Продаж лікарських засобів без рецепта у заборонених законодавством випадках","42-4"]
[11,"Незаконні виробництво, придбання, зберігання, перевезення, пересилання наркотичних засобів або психотропних речовин без мети збуту в невеликих розмірах",44]
[12,"Ухилення від медичного огляду чи медичного обстеження","44-1"]
[13,"Порушення обмежень, встановлених для медичних і фармацевтичних працівників під час здійснення ними професійної діяльності","44-2"]
[14,"Ухилення від обстеження і профілактичного лікування осіб, хворих на венеричну хворобу",45]
[15,"Порушення встановленого порядку взяття, переробки, зберігання, реалізації і застосування донорської крові та (або) її компонентів і препаратів","45-1"]
[16,"Умисне приховування джерела зараження венеричною хворобою",46]
[17,"Порушення вимог режиму радіаційної безпеки в місцевостях, що зазнали радіоактивного забруднення","46-1"]
[18,"Порушення встановлених законодавством вимог щодо заняття народною медициною (цілительством)","46-2"]
[19,"Порушення права державної власності на надра",47]
[20,"Порушення права державної власності на води",48]
[21,"Порушення права державної власності на ліси",49]
[22,"Порушення права державної власності на тваринний світ",50]
[23,"Дрібне викрадення чужого майна",51]
[24,"В И К Л Ю Ч Е Н А","51-1"]
[25,"Порушення прав на об'єкт права інтелектуальної власності","51-2"]
[26,"Продаж квитків на фінальні матчі Ліги чемпіонів УЄФА або Ліги чемпіонів УЄФА серед жінок сезону 2017/2018","51-3"]
[27,"Псування і забруднення сільськогосподарських та інших земель",52]
[28,"Порушення правил використання земель",53]
[29,"Самовільне зайняття земельної ділянки","53-1"]
[30,"Приховування або перекручення даних земельного кадастру","53-2"]
[31,"Зняття та перенесення ґрунтового покриву земельних ділянок без спеціального дозволу ","53-3"]
[32,"Незаконне заволодіння ґрунтовим покривом (поверхневим шаром) земель ","53-4"]
[33,"Порушення строку погодження (відмови у погодженні) документації із землеустрою","53-5"]
[34,"Порушення законодавства про Державний земельний кадастр","53-6"]
[35,"Порушення строків повернення тимчасово зайнятих земель або неприведення їх у стан, придатний для використання за призначенням ",54]
[36,"Порушення правил землеустрою",55]
[37,"Знищення межових знаків",56]
[38,"Порушення вимог щодо охорони надр",57]
[39,"Порушення правил і вимог проведення робіт по геологічному вивченню надр",58]
[40,"Порушення правил охорони водних ресурсів",59]
[41,"Порушення вимог щодо охорони територіальних і внутрішніх морських вод від забруднення і засмічення","59-1"]
[42,"Порушення правил водокористування",60]
[43,"Пошкодження водогосподарських споруд і пристроїв, порушення правил їх експлуатації",61]
[44,"Невиконання обов'язків по реєстрації в суднових документах операцій з шкідливими речовинами і сумішами",62]
[45,"Незаконне використання земель державного лісового фонду",63]
[46,"Порушення встановленого порядку використання лісосічного фонду, заготівлі і вивезення деревини, заготівлі живиці",64]
[47,"Незаконна порубка, пошкодження та знищення лісових культур і молодняка",65]
[48,"Знищення або пошкодження полезахисних лісових смуг та захисних лісових насаджень","65-1"]
[49,"Знищення або пошкодження підросту в лісах",66]
[50,"Здійснення лісових користувань не у відповідності з метою або вимогами, передбаченими в лісорубному квитку (ордері) або лісовому квитку",67]
[51,"Порушення правил відновлення і поліпшення лісів, використання ресурсів спілої деревини",68]
[52,"Пошкодження сінокосів і пасовищних угідь на землях державного лісового фонду",69]
[53,"Самовільне сінокосіння і пасіння худоби, самовільне збирання дикорослих плодів, горіхів, грибів, ягід",70]
[54,"Введення в експлуатацію виробничих об'єктів без обладнання, що запобігає шкідливому впливу на ліси",71]
[55,"Пошкодження лісу стічними водами, хімічними речовинами, нафтою і нафтопродуктами, шкідливими викидами, відходами і покидьками",72]
[56,"Засмічення лісів відходами",73]
[57,"Знищення або пошкодження лісоосушувальних канав, дренажних систем і шляхів на землях державного лісового фонду",74]
[58,"Знищення або пошкодження відмежувальних знаків у лісах",75]
[59,"Знищення корисної для лісу фауни",76]
[60,"Порушення вимог пожежної безпеки в лісах",77]
[61,"Самовільне випалювання рослинності або її залишків","77-1"]
[62,"Порушення порядку здійснення викиду забруднюючих речовин в атмосферу або впливу на неї фізичних та біологічних факторів",78]
[63,"Порушення порядку здійснення діяльності, спрямованої на штучні зміни стану атмосфери і атмосферних явищ","78-1"]
[64,"Недодержання вимог щодо охорони атмосферного повітря при введенні в експлуатацію і експлуатації підприємств і споруд",79]
[65,"В И К Л Ю Ч Е Н А","79-1"]
[66,"Випуск в експлуатацію транспортних та інших пересувних засобів з перевищенням нормативів вмісту забруднюючих речовин у відпрацьованих газах",80]
[67,"Експлуатація автомототранспортних та інших пересувних засобів з перевищенням нормативів вмісту забруднюючих речовин у відпрацьованих газах",81]
[68,"Порушення вимог щодо поводження з відходами під час їх збирання, перевезення, зберігання, оброблення, утилізації, знешкодження, видалення або захоронення",82]
[69,"Порушення правил ведення первинного обліку та здійснення контролю за операціями поводження з відходами або неподання чи подання звітності щодо утворення, використання, знешкодження та видалення відходів","82-1"]
[70,"Виробництво продукції з відходів чи з їх використанням без відповідної нормативно-технічної та технологічної документації","82-2"]
[71,"Приховування, перекручення або відмова від надання повної та достовірної інформації за запитами посадових осіб і зверненнями громадян та їх об'єднань щодо безпеки утворення відходів та поводження з ними","82-3"]
[72,"Змішування чи захоронення відходів, для утилізації яких в Україні існує відповідна технологія, без спеціального дозволу","82-4"]
[73,"Порушення правил передачі відходів","82-5"]
[74,"Порушення встановлених правил і режиму експлуатації установок і виробництв з оброблення та утилізації відходів","82-6"]
[75,"Порушення вимог законодавства у сфері хімічних  джерел струму","82-7"]
[76,"Порушення правил застосування, зберігання, транспортування, знешкодження, ліквідації та захоронення пестицидів і агрохімікатів, токсичних хімічних речовин та інших препаратів",83]
[77,"Порушення законодавства про захист рослин","83-1"]
[78,"Порушення правил використання об'єктів тваринного світу",85,9,null,null,null,null,null,null,null,null,null,null,1,null,7,1]
[79,"Виготовлення та збут заборонених знарядь добування об'єктів тваринного або рослинного світу","85-1",1,null,1,null,null,null,null,null,null,null,null,null,null,null,1]
[80,"Експлуатація на водних об'єктах водозабірних споруд, не забезпечених рибозахисним обладнанням","86-1"]
[81,"Порушення вимог щодо охорони середовища перебування і шляхів міграції, переселення, акліматизації та схрещування диких тварин",87]
[82,"Незаконне вивезення з України і ввезення на її територію об'єктів тваринного і рослинного світу",88]
[83,"Порушення порядку придбання чи збуту об'єктів тваринного або рослинного світу, правил утримання диких тварин у неволі або в напіввільних умовах","88-1"]
[84,"Порушення правил створення, поповнення, зберігання, використання або державного обліку зоологічних, ботанічних колекцій та торгівлі ними","88-2"]
[85,"Жорстоке поводження з тваринами",89]
[86,"Порушення вимог щодо охорони видів тварин і рослин, занесених до Червоної книги України",90,3,null,3,null,null,1,null,null,null,null,null,1,null,1]
[87,"Невиконання правил і норм у процесі створення, виробництва, зберігання, транспортування, використання, знешкодження, ліквідації, захоронення мікроорганізмів, біологічно активних речовин та інших продуктів біотехнологій","90-1"]
[88,"Порушення правил охорони та використання територій та об'єктів природно-заповідного фонду",91]
[89,"Невиконання вимог екологічної безпеки у процесі впровадження відкриттів, винаходів, корисних моделей, промислових зразків, раціоналізаторських пропозицій, нової техніки, технологій і систем, речовин і матеріалів","91-1"]
[90,"Перевищення лімітів та нормативів використання природних ресурсів","91-2"]
[91,"Приховування перевищення встановлених лімітів на обсяги утворення та розміщення відходів","91-3"]
[92,"Відмова від надання чи несвоєчасне надання екологічної інформації","91-4"]
[93,"Порушення вимог законодавства у сфері оцінки впливу на довкілля","91-5"]
[94,"Порушення правил охорони і використання пам'яток історії та культури",92]
[95,"Порушення законодавства про Національний архівний фонд та архівні установи","92-1"]
[96,"Порушення вимог законодавчих та інших нормативних актів з безпечного ведення робіт у галузях промисловості",93]
[97,"Порушення вимог законодавчих та інших нормативних актів про зберігання, використання та облік вибухових матеріалів у галузях промисловості",94]
[98,"Порушення правил і норм ядерної та радіаційної безпеки",95]
[99,"Порушення вимог нормативно-правових актів та нормативних документів з питань технічної експлуатації електричних станцій і мереж, енергетичного обладнання (Порушення вимог нормативно-правових актів щодо технічної експлуатації електричних станцій і мереж, енергетичного обладнання)","95-1"]
[100,"Порушення вимог законодавства, будівельних норм, державних стандартів і правил під час будівництва (Недодержання будівельних норм, державних стандартів, норм і правил під час проектування і будівництва)",96]
[101,"Порушення законодавства під час планування і забудови територій","96-1"]
[102,"В И К Л Ю Ч Е Н А",97]
[103,"Марнотратне витрачання паливно-енергетичних ресурсів",98]
[104,"Порушення Правил охорони електричних мереж  ",99]
[105,"Порушення, зв'язані з використанням газу",101]
[106,"Недотримання вимог щодо ефективного використання паливно-енергетичних ресурсів","101-1"]
[107,"Порушення, пов'язані з неефективною експлуатацією паливо- і енерговикористовуючого устаткування",102]
[108,"Непідготовленість до роботи резервного паливного господарства",103]
[109,"Порушення правил користування енергією чи газом","103-1"]
[110,"Пошкодження газопроводів при провадженні робіт","103-2"]
[111,"Потрава посівів, зіпсуття або знищення зібраного врожаю сільськогосподарських культур, пошкодження насаджень колективних сільськогосподарських підприємств, інших державних і громадських чи фермерських господарств",104]
[112,"Порушення порядку та умов ведення насінництва та розсадництва","104-1"]
[113,"Порушення правил щодо боротьби з карантинними шкідниками і хворобами рослин та бур'янами",105]
[114,"Ввезення в Україну, вивезення з України, транзит через її територію, вивезення з карантинних зон або ввезення до них об'єктів регулювання, які не пройшли фітосанітарного контролю",106]
[115,"Невжиття заходів щодо забезпечення охорони посівів снотворного маку чи конопель, місць їх зберігання та переробки","106-1"]
[116,"Незаконні посів та вирощування снотворного маку чи конопель","106-2"]
[117,"Порушення правил щодо карантину тварин та інших ветеринарно-санітарних вимог",107]
[118,"Порушення законодавства про племінну справу у тваринництві","107-1"]
[119,"Порушення вимог законодавства про ідентифікацію та реєстрацію тварин","107-2"]
[120,"Грубе порушення механізаторами правил технічної експлуатації сільськогосподарських машин і техніки безпеки",108]
[121,"Порушення правил по охороні порядку і безпеки руху на залізничному транспорті",109]
[122,"Порушення правил користування засобами залізничного транспорту",110]
[123,"Порушення правил безпеки польотів",111]
[124,"Порушення правил поведінки на повітряному судні",112]
[125,"Порушення правил міжнародних польотів",113]
[126,"Порушення правил по охороні порядку і безпеки руху на морському транспорті",114]
[127,"Порушення правил користування засобами морського транспорту",115]
[128,"Порушення правил по охороні порядку і безпеки руху на річковому транспорті і маломірних суднах",116]
[129,"Порушення правил випуску судна в плавання або допуск до керування судном осіб, які не мають відповідного документа","116-1"]
[130,"Порушення правил, що забезпечують безпеку експлуатації суден на внутрішніх водних шляхах","116-2"]
[131,"Порушення правил реєстрації торговельних суден","116-3"]
[132,"Порушення правил користування річковими і маломірними суднами",117]
[133,"Порушення правил утримання баз (споруд) для стоянки маломірних суден",118]
[134,"Порушення правил користування засобами автомобільного транспорту та електротранспорту",119]
[135,"Порушення правил пожежної безпеки на залізничному, морському, річковому і повітряному транспорті",120]
[136," Порушення водієм правил керування транспортним засобом, правил користування ременями безпеки або мотошоломами",121,2,null,null,null,null,1,null,null,null,null,null,null,null,1]
[137,"Експлуатація водіями транспортних засобів, ідентифікаційні номери складових частин яких не відповідають записам у реєстраційних документах","121-1"]
[138,"Порушення правил перевезення пасажирів при наданні послуг з перевезення пасажирів ","121-2"]
[139,"Перевищення встановлених обмежень швидкості руху, проїзд на заборонний сигнал регулювання дорожнього руху та порушення інших правил дорожнього руху",122]
[140,"В И К Л Ю Ч Е Н А","122-1"]
[141,"Невиконання водіями вимог про зупинку","122-2"]
[142,"В И К Л Ю Ч Е Н А","122-3"]
[143,"Залишення місця дорожньо-транспортної пригоди ","122-4",1,null,null,null,null,null,null,null,null,null,null,null,null,1]
[144,"Порушення вимог законодавства щодо встановлення і використання спеціальних світлових або звукових сигнальних пристроїв","122-5"]
[145," Порушення правил руху через залізничні переїзди",123]
[146,"Порушення правил дорожнього руху, що спричинило пошкодження транспортних засобів, вантажу, автомобільних доріг, вулиць, залізничних переїздів, дорожніх споруд чи іншого майна ",124,20,null,null,null,null,7,null,null,null,2,null,1,null,9,1]
[147,"Ненадання транспортних засобів поліцейським та медичним працівникам, а також ненадання військових транспортних засобів посадовим особам Військової служби правопорядку у Збройних Силах України","124-1"]
[148,"Інші порушення правил дорожнього руху",125]
[149,"Керування транспортним засобом особою, яка не має відповідних документів на право керування таким транспортним засобом або не пред'явила їх для перевірки",126,1,null,null,null,null,null,null,null,null,null,null,null,null,1]
[150,"Порушення правил дорожнього руху пішоходами, велосипедистами та особами, які керують гужовим транспортом, і погоничами тварин",127]
[151,"Порушення порядку видачі документа про технічну справність транспортного засобу та порядку видачі спеціального знака державного зразка про укладення договору обов'язкового страхування цивільно-правової відповідальності власників наземних транспортних засобів","127-1"]
[152,"Порушення порядку тимчасового затримання транспортних засобів та їх зберігання, порушення законодавства у сфері оплати послуг з паркування транспортних засобів","127-2"]
[153,"Випуск на лінію транспортних засобів, технічний стан яких не відповідає встановленим вимогам або без необхідних документів, передбачених законодавством ",128]
[154,"Порушення або невиконання правил, норм та стандартів, що стосуються забезпечення безпеки дорожнього руху ","128-1"]
[155,"Допуск до керування транспортними засобами або суднами водіїв чи судноводіїв, які перебувають у стані алкогольного, наркотичного чи іншого сп'яніння або під впливом лікарських препаратів, що знижують їх увагу та швидкість реакції, або осіб, які не мають права керування транспортним засобом ",129]
[156,"Керування транспортними засобами або суднами особами, які перебувають у стані алкогольного, наркотичного чи іншого сп'яніння або під впливом лікарських препаратів, що знижують їх увагу та швидкість реакції ",130,111,1,6,null,null,23,null,null,null,2,null,7,null,77,2]
[157,"В И К Л Ю Ч Е Н А",131]
[158,"В И К Л Ю Ч Е Н А",132]
[159,"Порушення правил дорожнього перевезення небезпечних вантажів та правил проїзду великогабаритних і великовагових транспортних засобів автомобільними дорогами, вулицями та залізничними переїздами ","132-1"]
[160,"Порушення правил перевезення небезпечних речовин і предметів на транспорті ",133]
[161,"Порушення правил надання послуг та вимог безпеки при наданні послуг з перевезення пасажирів чи вантажів автомобільним транспортом","133-1"]
[162,"Порушення умов і правил здійснення міжнародних автомобільних перевезень пасажирів і вантажів","133-2"]
[163,"Провезення ручної кладі понад установлені норми і неоплаченого багажу",134]
[164,"Безквитковий проїзд",135]
[165,"Підроблення проїзних квитків і знаків поштової оплати","135-1"]
[166,"Порушення правил, спрямованих на забезпечення схоронності вантажів на залізничному, морському, річковому та автомобільному транспорті",136]
[167,"Порушення правил, спрямованих на забезпечення схоронності вантажів на повітряному транспорті",137]
[168,"Порушення Правил охорони магістральних трубопроводів",138]
[169,"Пошкодження автомобільних доріг, вулиць, дорожніх споруд, залізничних переїздів і технічних засобів регулювання дорожнього руху, створення перешкод для руху та невжиття необхідних заходів щодо їх усунення ",139]
[170,"Порушення правил, норм і стандартів при утриманні автомобільних доріг і вулиць, невжиття заходів щодо своєчасної заборони або обмеження руху чи позначення на автомобільних дорогах і вулицях місць провадження робіт ",140]
[171,"Порушення правил охорони смуги відводу автомобільних шляхів",141]
[172,"Порушення землекористувачами правил утримання ділянок, прилеглих до автомобільних шляхів",142]
[173,"Обладнання та експлуатація установок проводового мовлення без належної реєстрації або дозволу",144]
[174,"Порушення умов і правил, що регламентують діяльність у сфері телекомунікацій, поштового зв'язку та користування радіочастотним ресурсом України, передбачену ліцензіями, дозволами",145]
[175,"Порушення правил реалізації, експлуатації радіоелектронних засобів та випромінювальних пристроїв, а також користування радіочастотним ресурсом України",146]
[176,"Порушення правил охорони ліній і споруд зв'язку",147]
[177,"Пошкодження таксофонів",148]
[178,"Порушення Правил надання та отримання телекомунікаційних послуг","148-1"]
[179,"Порушення порядку та умов надання послуг зв'язку в мережах загального користування","148-2"]
[180,"Використання засобів зв'язку з метою, що суперечить інтересам держави, з метою порушення громадського порядку та посягання на честь і гідність громадян ","148-3"]
[181,"Використання технічних засобів та обладнання, що застосовуються в мережах зв'язку загального користування, без документа про підтвердження відповідності","148-4"]
[182,"Порушення правил про взаємоз'єднання телекомунікаційних мереж загального користування","148-5"]
[183,"Порушення порядку взяття на облік та строків заселення жилих будинків і жилих приміщень",149]
[184,"Порушення порядку ведення єдиного державного реєстру громадян, які потребують поліпшення житлових умов","149-1"]
[185,"Порушення правил користування жилими будинками і жилими приміщеннями",150]
[186,"Самоправне зайняття жилого приміщення",151]
[187,"Порушення державних стандартів, норм і правил у сфері благоустрою населених пунктів, правил благоустрою територій населених пунктів",152]
[188,"Порушення правил паркування транспортних засобів","152-1"]
[189,"Знищення або пошкодження зелених насаджень або інших об'єктів озеленення населених пунктів",153]
[190,"Порушення правил тримання собак і котів",154]
[191,"Порушення правил торгівлі і надання послуг працівниками торгівлі, громадського харчування та сфери послуг, громадянами, які займаються підприємницькою діяльністю",155]
[192,"Порушення порядку проведення розрахунків","155-1"]
[193,"Обман покупця чи замовника","155-2"]
[194,"Порушення правил торгівлі пивом, алкогольними, слабоалкогольними напоями і тютюновими виробами",156]
[195,"Порушення законодавства про захист прав споживачів","156-1"]
[196,"Порушення встановленого порядку промислової переробки, зберігання, транспортування або знищення конфіскованих спирту, алкогольних напоїв чи тютюнових виробів","156-2"]
[197,"Порушення встановлених законодавством вимог щодо заборони реклами та спонсорства тютюнових виробів","156-3"]
[198,"В И К Л Ю Ч Е Н А",157]
[199," Порушення правил торгівлі на ринках",159]
[200,"Торгівля з рук у невстановлених місцях",160]
[201,"В И К Л Ю Ч Е Н А","160-2"]
[202,"Незаконний відпуск або придбання бензину чи інших паливно-мастильних матеріалів",161]
[203,"Порушення правил про валютні операції",162]
[204,"Ухилення від повернення виручки в іноземній валюті","162-1"]
[205,"Незаконне відкриття або використання за межами України валютних рахунків","162-2"]
[206,"Порушення правил здачі дорогоцінних металів і дорогоцінного каміння","162-3"]
[207,"Розміщення цінних паперів без реєстрації їх випуску або порушення порядку здійснення емісії цінних паперів ",163]
[208,"Порушення порядку ведення податкового обліку, надання аудиторських висновків","163-1",6,null,3,null,null,null,null,null,null,6]
[209,"Неподання або несвоєчасне подання платіжних доручень на перерахування належних до сплати податків та зборів (обов'язкових платежів)","163-2"]
[210,"Невиконання законних вимог посадових осіб органів доходів і зборів ","163-3"]
[211,"Порушення порядку утримання та перерахування податку на доходи фізичних осіб і подання відомостей про виплачені доходи","163-4",19,null,8,null,null,null,1,null,null,13,null,null,null,null,5]
[212,"Приховування інформації про діяльність емітента","163-5"]
[213,"Неподання документів, подання яких передбачено законодавством про депозитарну систему України","163-6"]
[214,"Діяльність на фондовому ринку без ліцензії","163-7"]
[215,"Маніпулювання на фондовому ринку","163-8"]
[216,"Незаконне використання інсайдерської інформації","163-9"]
[217,"Порушення порядку внесення змін до системи депозитарного обліку цінних паперів","163-10"]
[218,"Порушення порядку розкриття інформації на фондовому ринку","163-11"]
[219,"Порушення умов видачі векселів","163-12"]
[220,"Порушення порядку приймання готівки для подальшого її переказу","163-13"]
[221,"Порушення порядку здійснення операцій з електронними грошима","163-14"]
[222,"Порушення порядку проведення готівкових розрахунків та розрахунків з використанням електронних платіжних засобів за товари (послуги)","163-15"]
[223,"Порушення порядку оприлюднення фінансової звітності або консолідованої фінансової звітності","163-16"]
[224,"Порушення порядку справляння та сплати туристичного збору","163-17"]
[225,"Порушення порядку провадження господарської діяльності",164]
[226,"Порушення порядку подання декларації про доходи та ведення обліку доходів і витрат","164-1"]
[227,"Порушення законодавства з фінансових питань","164-2"]
[228,"Недобросовісна конкуренція","164-3"]
[229,"Несвоєчасне здавання виторгу","164-4"]
[230,"Зберігання або транспортування алкогольних напоїв чи тютюнових виробів, на яких немає марок акцизного збору встановленого зразка","164-5"]
[231,"Демонстрування і розповсюдження фільмів без державного посвідчення на право розповсюдження і демонстрування фільмів","164-6"]
[232,"Порушення умов розповсюдження і демонстрування фільмів, передбачених державним посвідченням на право розповсюдження і демонстрування фільмів","164-7"]
[233,"Недотримання квоти демонстрування національних фільмів при використанні національного екранного часу","164-8"]
[234,"Незаконне розповсюдження примірників аудіовізуальних творів, фонограм, відеограм, комп'ютерних програм, баз даних","164-9"]
[235,"Порушення законодавства, що регулює здійснення операцій з металобрухтом","164-10"]
[236,"Порушення законодавства про бюджетну систему України","164-12"]
[237,"Порушення законодавства, що регулює виробництво, експорт, імпорт дисків для лазерних систем зчитування, матриць, експорт, імпорт обладнання чи сировини для їх виробництва","164-13"]
[238,"Порушення законодавства про закупівлі","164-14"]
[239,"Приховування стійкої фінансової неспроможності","164-15"]
[240,"Зайняття забороненими видами господарської діяльності","164-16"]
[241,"Порушення умов і правил, що визначають порядок припинення порушень авторського права і (або) суміжних прав з використанням мережі Інтернет","164-17"]
[242,"Наведення завідомо недостовірної інформації у заявах про припинення авторського права і (або) суміжних прав, вчинених з використанням мережі Інтернет","164-18"]
[243,"Порушення порядку надання інформації, необхідної для здійснення оцінки фіскальних ризиків, та невжиття заходів у сфері управління фіскальними ризиками","164-19"]
[244,"Порушення законодавства у сфері загальнообов'язкового державного пенсійного страхування","165-1"]
[245,"Порушення порядку формування та застосування цін і тарифів","165-2"]
[246,"Порушення строку реєстрації як платника страхових внесків до Фонду загальнообов'язкового державного соціального страхування України на випадок безробіття, несвоєчасна або неповна сплата страхових внесків","165-3"]
[247,"Порушення законодавства про загальнообов'язкове державне соціальне страхування від нещасного випадку на виробництві та професійного захворювання, які спричинили втрату працездатності","165-4"]
[248,"Порушення законодавства про загальнообов'язкове державне соціальне страхування у зв'язку з тимчасовою втратою працездатності","165-5"]
[249,"Зловживання монопольним становищем на ринку","166-1"]
[250,"Неправомірні угоди між підприємц","166-2"]
[251,"Дискримінація підприємців органами влади i управління","166-3"]
[252,"Порушення порядку подання інформації та виконання рішень Антимонопольного комітету України та його територіальних відділень","166-4"]
[253,"Порушення банківського законодавства, законодавства, яке регулює переказ коштів в Україні, нормативно-правових актів Національного банку України або здійснення ризикових операцій, які загрожують інтересам вкладників чи інших кредиторів банку ","166-5"]
[254,"Порушення порядку припинення юридичної особи або підприємницької діяльності фізичної особи - підприємця","166-6"]
[255,"Протидія тимчасовій адміністрації або ліквідації банку","166-7"]
[256,"Порушення порядку зайняття діяльністю з надання фінансових послуг (Здійснення банківської діяльності без банківської ліцензії)","166-8"]
[257,"Порушення законодавства щодо запобігання та протидії легалізації (відмиванню) доходів, одержаних злочинним шляхом, фінансуванню тероризму та фінансуванню розповсюдження зброї масового знищення","166-9"]
[258,"Порушення вимог законодавства з питань видачі документів дозвільного характеру (Порушення порядку видачі документа дозвільного характеру)","166-10"]
[259,"Порушення законодавства про державну реєстрацію юридичних осіб, фізичних осіб - підприємців та громадських формувань","166-11"]
[260,"Порушення законодавства у сфері ліцензування видів господарської діяльності","166-12"]
[261,"Порушення законодавства, що регулює фінансові механізми здійснення інвестицій у будівництво житла","166-13"]
[262,"Недотримання особою обов'язкових умов щодо приватизації державного, комунального майна або підприємств та їх подальшого використання","166-14"]
[263,"Незаконні дії щодо приватизаційних паперів","166-15"]
[264,"Незаконні дії у разі банкрутства","166-16"]
[265,"Фіктивне банкрутство","166-17"]
[266,"Примушування до антиконкурентних узгоджених дій","166-18"]
[267,"Порушення законодавства у сфері гарантування вкладів фізичних осіб","166-19"]
[268,"Порушення законів України та нормативно-правових актів Національного банку України щодо здійснення нагляду (оверсайту) платіжних систем та систем розрахунків (далі - платіжні системи)","166-20"]
[269,"Порушення порядку здійснення державного нагляду (контролю) у сфері господарської діяльності","166-21"]
[270,"Порушення вимог законодавства про безпечність та окремі показники якості харчових продуктів","166-22"]
[271,"Порушення порядку державної реєстрації речових прав на нерухоме майно та їх обтяжень","166-23"]
[272,"Введення в обіг або реалізація продукції, яка не відповідає вимогам стандартів",167]
[273,"В И К Л Ю Ч Е Н А",168]
[274,"Виконання робіт, надання послуг громадянам-споживачам, що не відповідають вимогам стандартів, норм і правил","168-1"]
[275,"Випуск у продаж продукції з порушенням вимог щодо медичних попереджень споживачів тютюнових виробів","168-2"]
[276,"Передача замовнику або у виробництво документації, яка не відповідає вимогам стандартів",169]
[277," Недодержання стандартів при транспортуванні, зберіганні і використанні продукції (крім харчових продуктів) ",170]
[278,"Введення в обіг продукції, щодо якої немає сертифіката відповідності або свідоцтва про визнання відповідності чи декларації про відповідність, а також неправомірне застосування національного знака відповідності","170-1"]
[279,"Порушення вимог щодо випуску з ремонту та видачі на прокат засобів вимірювальної техніки",171]
[280,"Порушення умов і правил проведення повірки засобів вимірювальної техніки","171-1"]
[281,"Фальсифікація засобів вимірювання","171-2"]
[282,"Порушення правил застосування засобів вимірювальної техніки",172]
[283,"Порушення процедур оцінки відповідності","172-1"]
[284,"Порушення посадовими особами фітосанітарної лабораторії законодавства України про карантин рослин","172-1-1"]
[285,"В И К Л Ю Ч Е Н А","172-2"]
[286,"В И К Л Ю Ч Е Н А","172-3"]
[287,"Порушення обмежень щодо сумісництва та суміщення з іншими видами діяльності","172-4"]
[288,"Порушення встановлених законом обмежень щодо одержання дарунка (пожертви)","172-5"]
[289,"Порушення вимог фінансового контролю","172-6",1,null,null,null,null,null,null,null,null,null,null,null,null,1]
[290,"Порушення вимог щодо повідомлення про конфлікт інтересів","172-7"]
[291,"Незаконне використання інформації, що стала відома особі у зв'язку з виконанням службових або інших визначених законом повноважень","172-8"]
[292,"Невжиття заходів щодо протидії корупції","172-9"]
[293,"Порушення заборони розміщення ставок на спорт, пов'язаних з маніпулюванням офіційним спортивним змаганням","172-9-1"]
[294,"Відмова від виконання наказу або інших законних вимог командира (начальника)","172-10"]
[295,"Самовільне залишення військової частини або місця служби","172-11"]
[296,"Необережне знищення або пошкодження військового майна","172-12"]
[297,"Зловживання військовою службовою особою владою або службовим становищем","172-13"]
[298,"Перевищення військовою службовою особою влади чи службових повноважень","172-14"]
[299,"Недбале ставлення до військової служби","172-15"]
[300,"Бездіяльність військової влади","172-16"]
[301,"Порушення правил несення бойового чергування","172-17"]
[302,"Порушення правил несення прикордонної служби","172-18"]
[303,"Порушення правил поводження із зброєю, а також речовинами і предметами, що становлять підвищену небезпеку для оточення","172-19"]
[304,"Розпивання пива, алкогольних, слабоалкогольних напоїв військовослужбовцями","172-20"]
[305,"Дрібне хуліганство",173,7,null,null,null,null,1,null,null,null,null,null,3,null,3]
[306,"Поширювання неправдивих чуток","173-1"]
[307,"Вчинення домашнього насильства, насильства за ознакою статі, невиконання термінового заборонного припису або неповідомлення про місце свого тимчасового перебування","173-2",26,null,3,null,null,12,null,null,null,null,null,2,null,11,1]
[308,"Виготовлення та пропаганда георгіївської (гвардійської) стрічки","173-3"]
[309,"Булінг (цькування) учасника освітнього процесу","173-4"]
[310,"Стрільба з вогнепальної, холодної метальної чи пневматичної зброї, пристроїв для відстрілу патронів, споряджених гумовими чи аналогічними за своїми властивостями метальними снарядами несмертельної дії, в населених пунктах і в не відведених для цього місцях або з порушенням установленого порядку ",174]
[311,"Порушення встановлених законодавством вимог пожежної безпеки",175]
[312,"Куріння тютюнових виробів у заборонених місцях","175-1"]
[313,"Здійснення суб'єктом господарювання господарської діяльності без декларації відповідності матеріально-технічної бази суб'єкта господарювання вимогам законодавства у сфері пожежної безпеки","175-2"]
[314,"Виготовлення, зберігання самогону та апаратів для його вироблення",176]
[315,"Придбання самогону та інших міцних спиртних напоїв домашнього вироблення",177]
[316,"Виготовлення, придбання, зберігання або реалізація фальсифікованих алкогольних напоїв або тютюнових виробів","177-2"]
[317,"Розпивання пива, алкогольних, слабоалкогольних напоїв у заборонених законом місцях або поява у громадських місцях у п'яному вигляді",178]
[318,"Розпивання пива, алкогольних, слабоалкогольних напоїв на виробництві",179]
[319,"Доведення неповнолітнього до стану сп'яніння",180]
[320,"Порушення порядку перебування дітей у закладах, у яких проводиться діяльність у сфері розваг або закладах громадського харчування","180-1"]
[321,"Азартні ігри, ворожіння в громадських місцях",181]
[322,"Заняття проституцією","181-1"]
[323,"Порушення вимог законодавчих та інших нормативно-правових актів щодо захисту населення від шкідливого впливу шуму чи правил додержання тиші в населених пунктах і громадських місцях",182]
[324,"Завідомо неправдивий виклик спеціальних служб",183]
[325,"Несплата аліментів","183-1",16,null,1,null,null,1,null,null,null,null,null,null,null,15]
[326,"Ухилення особи від відбування адміністративного стягнення у виді суспільно корисних робіт","183-2"]
[327,"Невиконання батьками або особами, що їх замінюють, обов'язків щодо виховання дітей",184,1,null,1,null,null,null,null,null,null,null,null,null,null,1]
[328,"Неправомірне використання державного майна","184-1"]
[329,"Порушення порядку або строків подання інформації про дітей-сиріт і дітей, які залишилися без опіки (піклування) батьків","184-2"]
[330,"Незаконне використання найменування та ознак належності до Національної поліції України","184-3"]
[331,"Злісна непокора законному розпорядженню або вимозі поліцейського, члена громадського формування з охорони громадського порядку і державного кордону, військовослужбовця ",185,4,null,null,null,null,1,null,null,null,null,null,null,null,3]
[332,"Порушення порядку організації і проведення зборів, мітингів, вуличних походів і демонстрацій","185-1"]
[333,"Створення умов для організації і проведення з порушенням установленого порядку зборів, мітингів, вуличних походів або демонстрацій","185-2"]
[334,"Прояв неповаги до суду","185-3"]
[335,"Злісне ухилення свідка, потерпілого, експерта, перекладача від явки до органів досудового розслідування чи прокурора","185-4"]
[336," Перешкодження явці до суду народного засідателя, присяжного ","185-5"]
[337,"Невжиття заходів щодо окремої ухвали суду","185-6"]
[338," Публічні заклики до невиконання вимог поліцейського чи посадової особи Військової служби правопорядку у Збройних Силах України ","185-7"]
[339,"Ухилення від виконання законних вимог прокурора","185-8"]
[340,"Злісна непокора законному розпорядженню або вимозі працівника транспорту, який здійснює контроль за перевезенням пасажирів","185-9"]
[341,"Злісна непокора законному розпорядженню чи вимозі військовослужбовця або працівника Державної прикордонної служби України або члена громадського","185-10"]
[342,"Розголошення відомостей про заходи безпеки щодо особи, взятої під захист","185-11"]
[343,"Створення перешкод у виконанні робіт, пов'язаних з обслуговуванням об'єктів електроенергетики","185-12"]
[344,"Невиконання законних вимог посадових осіб Національного антикорупційного бюро України","185-13"]
[345,"Самоуправство",186]
[346,"Незаконні дії щодо державних нагород","186-1"]
[347,"В И К Л Ю Ч Е Н А","186-2"]
[348,"Порушення порядку подання або використання даних державних статистичних спостережень","186-3"]
[349,"В И К Л Ю Ч Е Н А","186-4"]
[350,"Порушення законодавства про об'єднання громадян","186-5"]
[351,"Порушення законодавства про друковані засоби масової інформації","186-6"]
[352,"Недоставляння або порушення строку доставляння обов'язкового безоплатного примірника документів","186-7"]
[353,"Незаконне носіння військової форми одягу із знаками розрізнення військовослужбовців","186-8"]
[354,"Порушення правил адміністративного нагляду",187,15,null,null,null,null,1,null,null,null,null,null,null,null,14]
[355,"Незаконна передача заборонених предметів особам, яких тримають у слідчих ізоляторах, установах виконання покарань",188]
[356,"Невиконання розпорядження державного або іншого органу про працевлаштування","188-1"]
[357,"Ухилення від виконання законних вимог посадових осіб центрального органу виконавчої влади, що реалізує державну політику у сфері державного контролю за додержанням законодавства про захист прав споживачів ","188-2"]
[358,"Невиконання законних вимог посадових осіб центрального органу виконавчої влади, що реалізує державну політику у сфері контролю за цінами","188-3"]
[359,"Невиконання законних вимог центрального органу виконавчої влади, що реалізує державну політику у сфері охорони праці ","188-4"]
[360,"Невиконання законних розпоряджень чи приписів посадових осіб органів, які здійснюють державний контроль у галузі охорони навколишнього природного середовища, використання природних ресурсів, радіаційної безпеки або охорону природних ресурсів","188-5"]
[361,"Невиконання законних вимог посадових осіб центрального органу виконавчої влади, що реалізує державну політику з питань нагляду та контролю за додержанням законодавства про працю, або створення перешкод для діяльності цього органу ","188-6"]
[362,"Невиконання законних вимог національної комісії, що здійснює державне регулювання у сфері зв'язку та інформатизації","188-7"]
[363,"Невиконання приписів та постанов посадових осіб центрального органу виконавчої влади, що реалізує державну політику з питань нагляду та контролю за додержанням законодавства про пожежну і техногенну безпеку ","188-8"]
[364,"Невиконання законних вимог посадових осіб центрального органу виконавчої влади, що реалізує державну політику у сфері стандартизації, метрології та метрологічної діяльності і технічного регулювання","188-9"]
[365,"Невиконання законних вимог посадових осіб центрального органу виконавчої влади, що реалізує державну політику у сфері контролю якості та безпеки лікарських засобів ","188-10"]
[366,"Невиконання постанов, розпоряджень, приписів, висновків, а так само інших законних вимог посадових осіб органів державної санітарно-епідеміологічної служби ","188-11"]
[367,"Невиконання законних вимог посадових осіб спеціально уповноважених органів виконавчої влади у сфері захисту рослин","188-12"]
[368,"Невиконання законних вимог державного виконавця","188-13"]
[369,"Невиконання законних вимог посадових осіб центрального органу виконавчої влади, що реалізує державну політику у сфері енергозбереження ","188-14"]
[370,"Невиконання законних вимог посадових осіб органів морського і річкового транспорту","188-15"]
[371,"Невиконання законних вимог посадових осіб центрального органу виконавчої влади, що реалізує державну політику з питань цивільного захисту, нагляду та контролю за станом захисту територій від надзвичайних ситуацій природного та техногенного характеру ","188-16",1,null,null,null,null,1]
[372,"Невиконання законних вимог посадових осіб центрального органу виконавчої влади, що реалізує державну політику у сфері державного експортного контролю ","188-17"]
[373,"Невиконання законних вимог (приписів) посадових осіб органів державного регулювання ядерної та радіаційної безпеки","188-18"]
[374,"Невиконання законних вимог народного депутата України, Рахункової палати, члена Рахункової палати","188-19"]
[375,"Невиконання (ухилення від виконання) або несвоєчасне виконання приписів посадових осіб центрального органу виконавчої влади з державного енергетичного нагляду чи розпоряджень його органів","188-20"]
[376,"Ухилення від виконання або несвоєчасне виконання рішень національної комісії, що здійснює державне регулювання у сфері енергетики ","188-21"]
[377,"Невиконання законних вимог посадових осіб державної санітарно-епідеміологічної служби та державної служби ветеринарної медицини","188-22"]
[378,"Перешкоджання уповноваженим особам органів доходів і зборів, Пенсійного фонду України, фондів загальнообов'язкового державного соціального страхування у проведенні перевірок","188-23"]
[379,"В И К Л Ю Ч Е Н А","188-24"]
[380,"Невиконання законних вимог (приписів) посадових осіб центрального органу виконавчої влади, що реалізує державну політику у сфері страхового фонду документації ","188-25"]
[381,"Невиконання законних вимог Головного державного фітосанітарного інспектора України, головних державних фітосанітарних інспекторів, державних фітосанітарних інспекторів ","188-26"]
[382,"Невиконання законних вимог інспекторів сільського господарства ","188-27"]
[383,"Невиконання законних вимог посадових осіб уповноважених підрозділів Національної поліції","188-28"]
[384,"Невиконання законних вимог посадових осіб національної комісії, що здійснює державне регулювання у сфері ринків фінансових послуг","188-29"]
[385,"Ухилення від виконання або несвоєчасне виконання законних вимог Національної комісії з цінних паперів та фондового ринку або її уповноважених осіб ","188-30"]
[386,"Невиконання законних вимог посадових осіб органів Державної служби спеціального зв'язку та захисту інформації України","188-31"]
[387,"Невиконання законних вимог Вищої ради правосуддя, її органу або члена Вищої ради правосуддя","188-32"]
[388,"Невиконання законних вимог посадових осіб органів охорони культурної спадщини\n","188-33"]
[389,"Невиконання законних вимог посадових осіб суб'єктів державного фінансового моніторингу","188-34"]
[390,"Невиконання законних вимог Вищої кваліфікаційної комісії суддів України, Кваліфікаційно-дисциплінарної комісії прокурорів або членів цих органів щодо надання інформації ","188-35"]
[391,"Невиконання законних вимог посадових осіб національної комісії, що здійснює державне регулювання у сферах енергетики та комунальних послуг","188-36"]
[392,"Невиконання законних вимог посадових осіб органів ринкового нагляду та їх територіальних органів ","188-37"]
[393,"Невиконання приписів посадових осіб спеціально уповноваженого органу з питань дозвільної системи у сфері господарської діяльності","188-38"]
[394,"Порушення законодавства у сфері захисту персональних даних","188-39"]
[395,"Невиконання законних вимог Уповноваженого Верховної Ради України з прав людини","188-40"]
[396,"Порушення законодавства про державну реєстрацію нормативно-правових актів","188-41"]
[397,"Невиконання законних вимог (приписів) посадових осіб органів державного архітектурно-будівельного контролю та нагляду","188-42"]
[398,"В И К Л Ю Ч Е Н А","188-43"]
[399,"Невиконання законних вимог посадових осіб центрального органу виконавчої влади, що реалізує державну регуляторну політику, політику з питань нагляду (контролю) у сфері господарської діяльності, ліцензування та дозвільної системи у сфері господарської діяльності та дерегуляції господарської діяльності","188-45"]
[400,"Невиконання законних вимог (приписів) Національного агентства з питань запобігання корупції","188-46"]
[401,"Порушення встановленого законом порядку отримання інформації з Єдиного державного реєстру, держателем якого є Державтоінспекція Міністерства внутрішніх справ України, Державного реєстру речових прав на нерухоме майно, Державного земельного кадастру","188-47"]
[402,"Невиконання законних вимог посадових осіб Національного агентства України з питань виявлення, розшуку та управління активами, одержаними від корупційних та інших злочинів","188-48"]
[403,"Невиконання законних вимог судді Конституційного Суду України, Колегії суддів, Сенату, Великої палати Конституційного Суду України","188-49"]
[404,"Невиконання законних вимог посадових (службових) осіб органу опіки та піклування","188-50"]
[405,"Невиконання законних вимог Комісії з питань осіб, зниклих безвісти за особливих обставин, члена Комісії з питань осіб, зниклих безвісти за особливих обставин","188-51"]
[406,"Порушення правил відкриття та функціонування штемпельно-граверних майстерень",189]
[407,"Порушення порядку видобутку, виробництва, використання та реалізації дорогоцінних металів і дорогоцінного каміння, дорогоцінного каміння органогенного утворення та напівдорогоцінного каміння","189-1"]
[408,"Порушення правил виготовлення та порядку обліку і зберігання печаток та штампів, а так само виготовлення, ввезення, реалізація та використання самонабірних печаток","189-2"]
[409,"Незаконне виготовлення, збут або використання державного пробірного клейма","189-3"]
[410,"Порушення громадянами порядку придбання, зберігання, передачі іншим особам або продажу вогнепальної, холодної чи пневматичної зброї",190]
[411,"Порушення громадянами правил зберігання, носіння або перевезення нагородної, вогнепальної, холодної чи пневматичної зброї і бойових припасів",191,1,null,null,null,null,null,null,null,null,null,null,null,null,1]
[412,"Порушення громадянами строків реєстрації (перереєстрації) нагородної, вогнепальної, холодної чи пневматичної зброї і правил взяття її на облік ",192]
[413,"Ухилення від реалізації вогнепальної, холодної чи пневматичної зброї і бойових припасів",193]
[414,"Порушення працівниками торговельних підприємств (організацій) порядку продажу вогнепальної, холодної чи пневматичної зброї і бойових припасів",194]
[415,"Порушення працівниками підприємств, установ, організацій правил зберігання або перевезення вогнепальної, холодної чи пневматичної зброї і бойових припасів",195]
[416,"Порушення порядку розробки, виготовлення, реалізації спеціальних засобів самооборони","195-1"]
[417,"Порушення порядку придбання, зберігання, реєстрації або обліку газових пістолетів і револьверів та патронів до них","195-2",1,null,null,null,null,null,null,null,null,1]
[418,"Порушення правил застосування спеціальних засобів самооборони","195-3"]
[419,"Порушення порядку виробництва, придбання, зберігання чи продажу електрошокових пристроїв і спеціальних засобів, що застосовуються правоохоронними органами","195-4"]
[420,"Незаконне зберігання спеціальних технічних засобів негласного отримання інформації ","195-5"]
[421,"Порушення порядку виробництва, зберігання, перевезення, торгівлі та використання піротехнічних засобів","195-6"]
[422,"Порушення правил навчання карате",196]
[423,"Проживання без паспорта громадянина України або без реєстрації місця проживання",197]
[424,"Умисне зіпсуття паспорта чи втрата його з необережності",198]
[425,"Допущення проживання без паспорта",199]
[426,"Прийняття на роботу без паспорта",200]
[427,"Незаконне вилучення паспортів і прийняття їх у заставу",201]
[428,"Порушення прикордонного режиму, режиму в пунктах пропуску через державний кордон України або режимних правил у контрольних пунктах в'їзду - виїзду",202]
[429,"Порушення іноземцями та особами без громадянства правил перебування в Україні і транзитного проїзду через територію України",203]
[430,"Невиконання рішення про заборону в’їзду в Україну","203-1"]
[431,"Порушення порядку працевлаштування, прийняття на навчання, надання житла, реєстрації іноземців та осіб без громадянства та оформлення для них документів",204]
[432,"Незаконне перетинання або спроба незаконного перетинання державного кордону України","204-1"]
[433,"Порушення порядку в'їзду на тимчасово окуповану територію України та виїзду з неї","204-2"]
[434,"Порушення порядку переміщення товарів до району або з району проведення антитерористичної операції","204-3"]
[435,"Порушення порядку в’їзду до району проведення антитерористичної операції або виїзду з нього","204-4"]
[436,"Невжиття заходів до забезпечення своєчасної реєстрації іноземців і осіб без громадянства",205]
[437,"Порушення порядку надання іноземцям та особам без громадянства житла, транспортних засобів та сприяння в наданні інших послуг",206]
[438,"Незаконне перевезення іноземців та осіб без громадянства територією України","206-1"]
[439,"Неповернення капітаном іноземного судна перепусток на право сходження на берег осіб суднового екіпажу",207]
[440,"Порушення військовозобов'язаними чи призовниками законодавства про загальний військовий обов'язок і військову службу",210]
[441,"Порушення законодавства про мобілізаційну підготовку та мобілізацію","210-1"]
[442,"Умисне зіпсуття обліково-військових документів чи втрата їх з необережності",211]
[443,"Неявка на виклик у військовий комісаріат","211-1"]
[444,"Неподання у військові комісаріати списків юнаків, які підлягають приписці до призовних дільниць","211-2"]
[445,"Прийняття на роботу військовозобов'язаних і призовників, які не перебувають на військовому обліку","211-3"]
[446,"Незабезпечення сповіщення військовозобов'язаних і призовників про їх виклик у військові комісаріати, перешкода їх своєчасній явці на збірні пункти чи призовні дільниці","211-4"]
[447,"Несвоєчасне подання документів, необхідних для ведення військового обліку військовозобов'язаних і призовників, несповіщення їх про виклик у військові комісаріати","211-5"]
[448,"Неподання відомостей про військовозобов'язаних і призовників","211-6"]
[449,"Повідомлення неправдивих відомостей державним органам реєстрації актів цивільного стану та несвоєчасна реєстрація народження дитини","212-1"]
[450,"Порушення законодавства про державну таємницю","212-2"]
[451,"Порушення права на інформацію та права на звернення","212-3"]
[452,"Порушення законодавства в галузі державного експортного контролю","212-4"]
[453,"Порушення порядку обліку, зберігання і використання документів та інших матеріальних носіїв інформації, що містять службову інформацію","212-5"]
[454,"Здійснення незаконного доступу до інформації в інформаційних (автоматизованих) системах, незаконне виготовлення чи розповсюдження копій баз даних інформаційних (автоматизованих) систем","212-6",3,null,2,null,null,null,null,null,null,3]
[455,"Порушення порядку ведення Державного реєстру виборців, порядку подання відомостей про виборців до органів Державного реєстру виборців, виборчих комісій, порядку складання та подання списків виборців, списків громадян України, які мають право брати участь у референдумі, та використання таких списків","212-7"]
[456,"Порушення права громадянина на ознайомлення з відомостями Державного реєстру виборців, зі списком виборців, списком громадян, які мають право брати участь у референдумі","212-8"]
[457,"Порушення порядку ведення передвиборної агітації, агітації під час підготовки і проведення референдуму з використанням засобів масової інформації та порядку участі в інформаційному забезпеченні виборів","212-9"]
[458,"Порушення обмежень щодо ведення передвиборної агітації, агітація в день проведення референдуму","212-10",2,null,null,null,null,null,null,null,null,null,null,null,null,2]
[459,"Ненадання можливості оприлюднити відповідь щодо інформації, поширеної стосовно суб'єкта виборчого процесу","212-11"]
[460,"Порушення права на користування приміщеннями під час виборчої кампанії","212-12"]
[461,"Виготовлення або розповсюдження друкованих матеріалів передвиборної агітації, які не містять відомостей про установу, що здійснила друк, їх тираж, інформацію про осіб, відповідальних за випуск","212-13"]
[462,"Порушення порядку розміщення агітаційних матеріалів чи політичної реклами або розміщення їх у заборонених законом місцях","212-14"]
[463,"Порушення порядку надання або отримання внеску на підтримку політичної партії, порушення порядку надання або отримання державного фінансування статутної діяльності політичної партії, порушення порядку надання або отримання фінансової (матеріальної) підтримки для здійснення передвиборної агітації або агітації з всеукраїнського або місцевого референдуму","212-15"]
[464,"Замовлення або виготовлення виборчих бюлетенів понад встановлену кількість","212-16"]
[465,"Ненадання копії виборчого протоколу","212-17"]
[466,"Невиконання рішення виборчої комісії, комісії з референдуму","212-18"]
[467,"Відмова у звільненні члена виборчої комісії від виконання виробничих чи службових обов'язків або його безпідставне звільнення з роботи","212-19"]
[468,"Порушення порядку опублікування документів, пов'язаних з підготовкою і проведенням виборів, референдуму","212-20"]
[469,"Порушення порядку подання фінансового звіту про надходження і використання коштів виборчого фонду, звіту партії про майно, доходи, витрати і зобов'язання фінансового характеру","212-21"]
[470,"Митний кодекс 1991р.","ст.МК 109"]
[471,"Митний кодекс 1991р.","ст.МК 112"]
[472,"Митний кодекс 1991р.","ст.МК 113"]
[473,"Митний кодекс 1991р.","ст.МК 114"]
[474,"Митний кодекс 1991р.","ст.МК 115"]
[475,"Митний кодекс 1991р.","ст.МК 116"]
[476,"Митний кодекс 1991р.","ст.МК 117"]
[477,"Митний кодекс 1991р.","ст.МК 118"]
[478,"Кодекс Митний 2002р.","ст. 329"]
[479,"Кодекс Митний 2002р.","ст. 330"]
[480,"Кодекс Митний 2002р.","ст. 331"]
[481,"Кодекс Митний 2002р.","ст. 332"]
[482,"Кодекс Митний 2002р.","ст. 333"]
[483,"Кодекс Митний 2002р.","ст. 334"]
[484,"Кодекс Митний 2002р.","ст. 335"]
[485,"Кодекс Митний 2002р.","ст. 336"]
[486,"Кодекс Митний 2002р.","ст. 337"]
[487,"Кодекс Митний 2002р.","ст. 338"]
[488,"Кодекс Митний 2002р.","ст. 339"]
[489,"Кодекс Митний 2002р.","ст. 340"]
[490,"Кодекс Митний 2002р.","ст. 341"]
[491,"Кодекс Митний 2002р.","ст. 342"]
[492,"Кодекс Митний 2002р.","ст. 343"]
[493,"Кодекс Митний 2002р.","ст. 344"]
[494,"Кодекс Митний 2002р.","ст. 345"]
[495,"Кодекс Митний 2002р.","ст. 346"]
[496,"Кодекс Митний 2002р.","ст. 347"]
[497,"Кодекс Митний 2002р.","ст. 348"]
[498,"Кодекс Митний 2002р.","ст. 349"]
[499,"Кодекс Митний 2002р.","ст. 350"]
[500,"Кодекс Митний 2002р.","ст. 351"]
[501,"Кодекс Митний 2002р.","ст. 352"]
[502,"Кодекс Митний 2002р.","ст. 353"]
[503,"Кодекс Митний 2002р.","ст. 354"]
[504,"Кодекс Митний 2002р.","ст. 355"]
[505,"Митний кодекс 2012 р.","ст. 468"]
[506,"Митний кодекс 2012 р.","ст. 469"]
[507,"Митний кодекс 2012 р.","ст. 470"]
[508,"Митний кодекс 2012 р.","ст. 471"]
[509,"Митний кодекс 2012 р.","ст. 472"]
[510,"Митний кодекс 2012 р.","ст. 473"]
[511,"Митний кодекс 2012 р.","ст. 474"]
[512,"Митний кодекс 2012 р.","ст. 475"]
[513,"Митний кодекс 2012 р.","ст. 476"]
[514,"Митний кодекс 2012 р.","ст. 477"]
[515,"Митний кодекс 2012 р.","ст. 478"]
[516,"Митний кодекс 2012 р.","ст. 479"]
[517,"Митний кодекс 2012 р.","ст. 480"]
[518,"Митний кодекс 2012 р.","ст. 481"]
[519,"Митний кодекс 2012 р.","ст. 482"]
[520,"Митний кодекс 2012 р.","ст. 483"]
[521,"Митний кодекс 2012 р.","ст. 484"]
[522,"Митний кодекс 2012 р.","ст. 485"]
[523,"інші статті","ст. інші"]

{"sheet":"Довідка ","index":3,"n_rows":26,"n_cols":6,"rows_kept":26,"cut":false,"hidden":false,"merged":[[24,4,24,5],[25,4,25,5],[18,4,18,5],[19,4,19,5],[20,4,20,5],[21,4,21,5],[22,4,22,5],[23,4,23,5],[0,0,0,1],[7,1,7,4],[8,1,8,4],[9,1,9,4],[10,1,10,4],[14,1,14,4],[15,1,15,4],[16,1,16,4],[1,1,1,4],[2,1,2,4],[3,1,3,4],[4,1,4,4],[5,1,5,4],[6,1,6,4],[12,1,12,4],[13,1,13,4],[11,1,11,4]]}
["Довідка"]
["№ з/п","Найменування показника",null,null,null,"Кількість"]
[1,"Кількість не звернених до виконання постанов про накладення стягнення у зв’язку із закінченням строку давності, усього, од"]
[2,"у тому числі про стягнення штрафу (з рядка 1)"]
[3,"у результаті не стягнуто штрафу на суму, грн. (з рядка 2)"]
[4,"Кількість вилученої вогнепальної зброї, од"]
[5,"Кількість вилучених бойових припасів, од "]
[6,"Кількість вилучених вибухових речовин, кг"]
[7,"Кількість вилучених наркотичних засобів, гр"]
[8,"Кількість вилучених отруйних, сильнодіючих та радіоактивних речовин, гр"]
[9,"Сума оплатно вилучених цінностей, грн."]
[10,"Сума конфіскованих товарів та цінностей, грн."]
[11,"Сума конфіскованої валюти, грн."]
[12,"Кількість конфіскованих автомобілів, од"]
[13,"Кількість осіб, яких направлено на проходження програми для кривдників, передбаченої Законом України \"Про запобігання та протидію домашньому насильству\" (осіб, які вчинили домашнє насильство чи насильство за ознакою статі) "]
[14,"Кількість розглянутих справ у порядку виконання постанов у справах про адміністративні правопорушення (усього), од",null,null,null,2]
[15,"з них, справ про скорочення строку позбавлення спеціального права"]
[]
[null,"Керівник:",null,null,"А.В. Дудіков"]
[null,null,"(підпис)",null,"(П.І.Б.)"]
[null,"Виконавець:",null,null,"О.А. Лошак"]
[null,null,"(підпис)",null,"(П.І.Б.)"]
[null,"Телефон:",null,null,"(04343)2-24-52"]
[null,"Факс:",null,null,"(04343)2-22-64"]
[null,"Електронна пошта:",null,null,"inbox@tr.vn.court.gov.ua"]
[null,"Дата",null,null,"13 січня 2020 року"]